Workbook

Sheet Setup
A1: ΤΟΥΡΝΟΥΑ 32άρι ταμπλό | D1: Θέσεις | E1: seed | H1: 0 | I1: seed | J1: space pos | K1: Index | L1: Value
D2: 3-4 | E2: =VALUE(LEFT(F2,1)) -> 3 | F2: 3 4 | H2: =IF(I2="-","-",IF(I2>0,H1+1,0)) -> 1 | I2: =IF(J2>0,VALUE(MID($A$32,1,J2-1)),"-") -> 1 | J2: =IF(LEN($A$32)>1,FIND(" ",$A$32,1),0) -> 2 | K2: 1 | L2: 1
A3: Διοργανωτής: | B3: Η' ΕΝΩΣΗ | E3: =VALUE(RIGHT(F2,1)) -> 4 | H3: 2 | I3: =IF(J3>0,VALUE(MID($A$32,J2+1,J3-J2-1)),"-") -> 2 | J3: =IF(AND(J2>0,LEN($A$32)>J2+1),FIND(" ",$A$32,J2+1),0) -> 4 | K3: 2 | L3: 2
A4: Τίτλος Τουρνουά: | B4: 3ο Ενωσιακό | D4: Θέσεις | E4: seed | H4: 3 | I4: 3 | J4: 6 | K4: 3 | L4: 3
A5: Συντομογραφία: | B5: Ε3 | D5: 5-8 | E5: =TRIM(LEFT(F5,(FIND(" ",F5,1)-1))) -> 8 | F5: 8 5 6 7 | H5: 4 | I5: 4 | J5: 8 | K5: 4 | L5: 4
A6: Έδρα αγώνων: | B6: Αττικός Ήλιος | E6: =TRIM(MID(F5,(FIND(" ",F5,1)),FIND(" ",F5,(FIND(" ",F5,1)+1))-(FIND(" ",F5,1)))) -> 5 | H6: 5 | I6: 5 | J6: 10 | K6: 5 | L6: 5
A7: Κατηγορίες: | B7: Α14 | E7: =TRIM(MID(F5, (FIND(" ",F5,(FIND(" ",F5,1)+1))+1), (FIND(" ",F5,(FIND(" ",F5,(FIND(" ",F5,1)+1))+1)))-(FIND(" ",F5,(FIND(" ",F5,1)+1))+1))) -> 6 | H7: 6 | I7: 6 | J7: 12 | K7: 6 | L7: 6
A8: Έναρξη: | B8: 4 | E8: =TRIM(RIGHT(F5,LEN(F5)-(FIND(" ",F5,(FIND(" ",F5,(FIND(" ",F5,1)+1))+1))))) -> 7 | H8: 7 | I8: 7 | J8: 14 | K8: 7 | L8: 7
A9: Λήξη: | B9: 6 Μαι 2012 | H9: 8 | I9: 8 | J9: 16 | K9: 8 | L9: 8
A10: Επιδιατητής: | B10: Ντ.Πατσουράκου | H10: 9 | I10: 29 | J10: 19 | K10: 9 | L10: 29
A11: Τηλέφωνο επιδ: | B11: 6934 306004 | H11: 10 | I11: =IF(J11>0,VALUE(MID($A$32,J10+1,J11-J10-1)),"-") -> 17 | J11: 22 | K11: 10 | L11: 17
H12: =IF(I12="-","-",IF(I12>0,H11+1,0)) -> 11 | I12: 30 | J12: 25 | K12: 11 | L12: 30
H13: 12 | I13: 10 | J13: 28 | K13: 12 | L13: 10
H14: 13 | I14: 11 | J14: 31 | K14: 13 | L14: 11
H15: 14 | I15: 18 | J15: 34 | K15: 14 | L15: 18
H16: 15 | I16: 24 | J16: 37 | K16: 15 | L16: 24
B17: ="("&32-COUNTIF(DrawPrep!C3:C34,">0")&")" -> (0) | H17: 16 | I17: 15 | J17: 40 | K17: 16 | L17: 15
A18: Πλήθος bye (0-15): | B18: 0 | H18: 17 | I18: 13 | J18: 43 | K18: 17 | L18: 13 | N18: seeded players
A19: Αριθμός θέσεων seeded: | B19: 8 | H19: 18 | I19: 12 | J19: 46 | K19: 18 | L19: 12 | N19: =IF(Setup!$B$19>0,LEFT(DrawPrep!D3,FIND(" ",DrawPrep!D3)-1)) -> ΤΣΙΤΣΙΠΑΣ
H20: 19 | I20: 19 | J20: 49 | K20: 19 | L20: 19 | N20: =IF(Setup!$B$19>1,LEFT(DrawPrep!D4,FIND(" ",DrawPrep!D4)-1)) -> ΑΝΤΩΝΟΠΟΥΛΟΣ
A21: All - Seeded - NoSeeded: | B21: =CONCATENATE(32-$B$18," - ",$B$19," - ",32-$B$19-$B$18) -> 32 - 8 - 24 | H21: 20 | I21: 32 | J21: 52 | K21: 20 | L21: 32 | N21: =IF(Setup!$B$19>2,LEFT(DrawPrep!D5,FIND(" ",DrawPrep!D5)-1)) -> ΛΑΖΑΡΙΔΗΣ
H22: 21 | I22: 20 | J22: 55 | K22: 21 | L22: 20 | N22: =IF(Setup!$B$19>3,LEFT(DrawPrep!D6,FIND(" ",DrawPrep!D6)-1)) -> ΤΣΙΡΑΝΙΔΗΣ
H23: 22 | I23: 22 | J23: 58 | K23: 22 | L23: 22 | N23: =IF(Setup!$B$19>4,LEFT(DrawPrep!D7,FIND(" ",DrawPrep!D7)-1)) -> ΗΛΙΟΠΟΥΛΟΣ
H24: 23 | I24: 14 | J24: 61 | K24: 23 | L24: 14 | N24: =IF(Setup!$B$19>5,LEFT(DrawPrep!D8,FIND(" ",DrawPrep!D8)-1)) -> ΚΑΠΙΡΗΣ
H25: 24 | I25: 21 | J25: 64 | K25: 24 | L25: 21 | N25: =IF(Setup!$B$19>6,LEFT(DrawPrep!D9,FIND(" ",DrawPrep!D9)-1)) -> ΚΟΝΤΟΠΟΥΛΟΣ
A26: =RandUniq(3;4;2) | H26: 25 | I26: 28 | J26: 67 | K26: 25 | L26: 28 | N26: =IF(Setup!$B$19>7,LEFT(DrawPrep!D10,FIND(" ",DrawPrep!D10)-1)) -> ΑΝΔΡΩΝΗΣ
A27: =RandUniq(5;8;4) | H27: 26 | I27: 16 | J27: 70 | K27: 26 | L27: 16
H28: 27 | I28: 31 | J28: 73 | K28: 27 | L28: 31
A29: =CONCATENATE(LEFT($A$34;$B$18*2);LEFT($A$33;$B$19*2);RandUniq($B$19+1;32-$B$18;32-$B$19-$B$18);" ") | H29: 28 | I29: 23 | J29: 76 | K29: 28 | L29: 23
H30: 29 | I30: 26 | J30: 79 | K30: 29 | L30: 26
H31: 30 | I31: 25 | J31: 82 | K31: 30 | L31: 25
A32: 1 2 3 4 5 6 7 8 29 17 30 10 11 18 24 15 13 12 19 32 20 22 14 21 28 16 31 23 26 25 9 27 | H32: 31 | I32: 9 | J32: 84 | K32: 31 | L32: 9
A33: 1 2 3 4 5 6 7 8 | H33: 32 | I33: 27 | J33: 87 | K33: 32 | L33: 27
A34: 0 0 0 0 0 0 0 0 0 0 0 0 0 0 0 0 0 0 0 0 0 0 0 0 0 0 0 0 0 0 0 0 0 0 0 0 0 0 0 0

Sheet DrawPrep
B1: =Setup!B3 & ", " & Setup!B4 & ", " & Setup!B6 & ", " & Setup!B8 & "-" & Setup!B9 & " (" & Setup!B7 & ")" -> Η' ΕΝΩΣΗ, 3ο Ενωσιακό, Αττικός Ήλιος, 4-6 Μαι 2012 (Α14) | H1: =Setup!B10 -> Ντ.Πατσουράκου
A2: α/α | B2: από | C2: Α.Μ. | D2: Ονοματεπώνυμο | E2: points | F2: Έτος | G2: Σύλλογος | H2: Τηλέφωνο | I2: Υπογραφή αθλητή | J2: SortPts
A3: 1 | C3: 25438 | D3: ΤΣΙΤΣΙΠΑΣ ΣΤΕΦΑΝΟΣ | E3: 190 | F3: 1998 | G3: Ο.Α.ΓΛΥΦΑΔΑΣ | J3: =IF(D3>" ",IF(E3>=0,E3+tmp!G6,tmp!G6),0) -> 190.0232178
A4: 2 | C4: 23775 | D4: ΑΝΤΩΝΟΠΟΥΛΟΣ ΧΡΗΣΤΟΣ | E4: 180 | F4: 1998 | G4: Ο.Α.ΚΕΡΑΤΣΙΝΙΟΥ | J4: =IF(D4>" ",IF(E4>=0,E4+tmp!G30,tmp!G30),0) -> 180.0114972
A5: 3 | C5: 25875 | D5: ΛΑΖΑΡΙΔΗΣ ΚΩΝΣΤΑΝΤΙΝΟΣ | E5: 160 | F5: 1998 | G5: Ε.Σ.Ο.ΕΠΙΚΟΥΡΟΣ ΠΟΛΙΧΝΗΣ | J5: =IF(D5>" ",IF(E5>=0,E5+tmp!G28,tmp!G28),0) -> 160.0232091
A6: 4 | C6: 23517 | D6: ΤΣΙΡΑΝΙΔΗΣ ΕΥΣΤΑΘΙΟΣ | E6: 140 | F6: 1998 | G6: Ο.Α.ΤΟΥΜΠΑΣ | J6: =IF(D6>" ",IF(E6>=0,E6+tmp!G26,tmp!G26),0) -> 140.0227175
A7: 5 | C7: 24845 | D7: ΗΛΙΟΠΟΥΛΟΣ ΒΑΣΙΛΗΣ | E7: 140 | F7: 1998 | G7: Α.Ο.Α.ΦΙΛΟΘΕΗΣ | J7: =IF(D7>" ",IF(E7>=0,E7+tmp!G12,tmp!G12),0) -> 140.0059711
A8: 6 | C8: 25297 | D8: ΚΑΠΙΡΗΣ ΣΤΑΜΑΤΗΣ | E8: 61 | F8: 1999 | G8: Α.Ο.Α.ΦΙΛΟΘΕΗΣ | J8: =IF(D8>" ",IF(E8>=0,E8+tmp!G10,tmp!G10),0) -> 61.0378563
A9: 7 | C9: 22866 | D9: ΚΟΝΤΟΠΟΥΛΟΣ ΘΕΟΦΑΝΗΣ | E9: 60 | F9: 1998 | G9: Ο.Α.ΚΟΡΙΝΘΟΥ | J9: =IF(D9>" ",IF(E9>=0,E9+tmp!G9,tmp!G9),0) -> 60.01850287
A10: 8 | C10: 26190 | D10: ΑΝΔΡΩΝΗΣ ΙΩΑΝΝΗΣ | E10: 60 | F10: 1999 | G10: Ο.Α.ΑΓΙΑΣ ΠΑΡΑΣΚΕΥΗΣ | J10: =IF(D10>" ",IF(E10>=0,E10+tmp!G23,tmp!G23),0) -> 60.00653969
A11: 9 | C11: 25296 | D11: ΣΠΑΘΗΣ ΜΑΡΙΝΟΣ | E11: 60 | F11: 1998 | G11: Α.Ο.Α.ΗΛΙΟΥΠΟΛΗΣ | J11: =IF(D11>" ",IF(E11>=0,E11+tmp!G18,tmp!G18),0) -> 60.0000364
A12: 10 | C12: 24516 | D12: ΒΟΪΝΕΑ ΑΛΕΞΑΝΔΡΟΣ | E12: 58 | F12: 1998 | G12: Ο.Α.ΒΟΥΛΙΑΓΜΕΝΗΣ ΜΙΚΡΟΙ ΑΣΣΟΙ | J12: =IF(D12>" ",IF(E12>=0,E12+tmp!G33,tmp!G33),0) -> 58.03698284
A13: 11 | C13: 26317 | D13: ΚΩΣΤΑΡΑΣ ΠΑΝΑΓΙΩΤΗΣ | E13: 58 | F13: 1999 | G13: Ο.Α.ΠΕΤΡΟΥΠΟΛΗΣ | J13: =IF(D13>" ",IF(E13>=0,E13+tmp!G25,tmp!G25),0) -> 58.00450416
A14: 12 | C14: 26297 | D14: ΑΓΙΟΥΣ ΓΕΩΡΓΙΟΣ | E14: 56 | F14: 1999 | G14: ΚΕΡΚΥΡΑΪΚΗ Λ.Τ. | J14: =IF(D14>" ",IF(E14>=0,E14+tmp!G5,tmp!G5),0) -> 56.03871293
A15: 13 | C15: 23040 | D15: ΚΑΤΣΑΛΗΣ ΚΩΝΣΤΑΝΤΙΝΟΣ | E15: 55 | F15: 1998 | G15: Α.Σ.Α.ΛΑΡΙΣΑΣ | J15: =IF(D15>" ",IF(E15>=0,E15+tmp!G24,tmp!G24),0) -> 55.00875123
A16: 14 | C16: 30054 | D16: ΣΑΚΕΛΛΑΡΙΔΗΣ ΜΙΧΑΛΗΣ | E16: 53 | F16: 2001 | G16: Ο.Α.ΑΓΙΑΣ ΠΑΡΑΣΚΕΥΗΣ | J16: =IF(D16>" ",IF(E16>=0,E16+tmp!G19,tmp!G19),0) -> 53.0293127
A17: 15 | C17: 28396 | D17: ΛΑΜΠΡΟΠΟΥΛΟΣ ΙΟΒΑΝ-ΑΛΕΞΑΝΤΕΡ | E17: 49 | F17: 2000 | G17: Ο.Α.ΒΟΥΛΙΑΓΜΕΝΗΣ ΜΙΚΡΟΙ ΑΣΣΟΙ | J17: =IF(D17>" ",IF(E17>=0,E17+tmp!G21,tmp!G21),0) -> 49.02886329
A18: 16 | C18: 30186 | D18: ΠΙΤΣΙΝΗΣ ΔΗΜΗΤΡΙΟΣ | E18: 48 | F18: 1999 | G18: Ο.Α.ΧΑΛΚΙΔΑΣ | J18: =IF(D18>" ",IF(E18>=0,E18+tmp!G32,tmp!G32),0) -> 48.02927641
A19: 17 | C19: 26478 | D19: ΚΗΠΟΥΡΟΣ ΣΤΑΥΡΟΣ | E19: 46 | F19: 1998 | G19: Ο.Α.ΧΑΝΙΩΝ | J19: =IF(D19>" ",IF(E19>=0,E19+tmp!G16,tmp!G16),0) -> 46.04298786
A20: 18 | C20: 26389 | D20: ΒΑΡΔΑΚΗΣ ΒΑΣΙΛΕΙΟΣ | E20: 46 | F20: 1999 | G20: ΑΚΑΔ.ΑΝΤΙΣΦ.ΙΩΑΝΝΙΝΩΝ | J20: =IF(D20>" ",IF(E20>=0,E20+tmp!G15,tmp!G15),0) -> 46.01971101
A21: 19 | C21: 24511 | D21: ΙΩΑΝΝΙΔΗΣ ΝΙΚΟΛΑΟΣ | E21: 46 | F21: 1998 | G21: Α.Ο.Α.ΦΙΛΟΘΕΗΣ | J21: =IF(D21>" ",IF(E21>=0,E21+tmp!G29,tmp!G29),0) -> 46.01881906
A22: 20 | C22: 27180 | D22: ΣΤΑΥΡΑΚΑΣ ΜΙΝΩΣ-ΚΙΜΩΝ | E22: 43 | F22: 1998 | G22: Α.Ο.Α.ΦΙΛΟΘΕΗΣ | J22: =IF(D22>" ",IF(E22>=0,E22+tmp!G17,tmp!G17),0) -> 43.03312836
A23: 21 | C23: 27583 | D23: ΠΑΧΑΚΗΣ ΝΙΚΟΛΑΟΣ-ΑΝΔΡΕΑΣ | E23: 41 | F23: 1999 | G23: Α.Ο.Α.ΗΛΙΟΥΠΟΛΗΣ | J23: =IF(D23>" ",IF(E23>=0,E23+tmp!G7,tmp!G7),0) -> 41.03114842
A24: 22 | C24: 28144 | D24: ΚΑΛΑΜΠΑΚΑΣ ΑΝΑΣΤΑΣΙΟΣ | E24: 41 | F24: 1998 | G24: Α.Σ.Α.ΛΑΡΙΣΑΣ | J24: =IF(D24>" ",IF(E24>=0,E24+tmp!G31,tmp!G31),0) -> 41.02025411
A25: 23 | C25: 26914 | D25: ΒΡΑΝΑΣ ΘΕΜΗΣ | E25: 41 | F25: 1998 | G25: Α.Ο.Α.ΦΙΛΟΘΕΗΣ | J25: =IF(D25>" ",IF(E25>=0,E25+tmp!G2,tmp!G2),0) -> 41.01621529
A26: 24 | C26: 28285 | D26: ΠΗΛΙΟΥΝΗΣ ΜΙΧΑΗΛ | E26: 41 | F26: 1999 | G26: Ο.Α.ΒΟΥΛΙΑΓΜΕΝΗΣ ΜΙΚΡΟΙ ΑΣΣΟΙ | J26: =IF(D26>" ",IF(E26>=0,E26+tmp!G11,tmp!G11),0) -> 41.01035162
A27: 25 | C27: 24115 | D27: ΝΤΑΝΤΙΝΗΣ ΑΓΓΕΛΟΣ | E27: 39 | F27: 1999 | G27: Α.Ε.Τ.ΝΙΚΗ ΠΑΤΡΩΝ | J27: =IF(D27>" ",IF(E27>=0,E27+tmp!G4,tmp!G4),0) -> 39.02591324
A28: 26 | C28: 29274 | D28: ΣΗΜΑΙΟΦΟΡΙΔΗΣ ΧΑΡΑΛΑΜΠΟΣ | E28: 38 | F28: 1999 | G28: ΠΕΥΚΗ-Γ.ΚΑΛΟΒΕΛΩΝΗΣ | J28: =IF(D28>" ",IF(E28>=0,E28+tmp!G22,tmp!G22),0) -> 38.04434816
A29: 27 | C29: 26385 | D29: ΒΟΥΛΓΑΡΑΚΗΣ ΕΛΕΥΘΕΡΙΟΣ | E29: 36 | F29: 1998 | G29: Ο.Α.ΣΟΥΔΑΣ | J29: =IF(D29>" ",IF(E29>=0,E29+tmp!G27,tmp!G27),0) -> 36.02556335
A30: 28 | C30: 22876 | D30: ΓΕΡΟΥΚΗΣ ΒΑΣΙΛΕΙΟΣ | E30: 34 | F30: 1998 | G30: Ο.Α.ΝΙΚΑΙΑ ΛΑΡΙΣΑΣ | J30: =IF(D30>" ",IF(E30>=0,E30+tmp!G14,tmp!G14),0) -> 34.01750654
A31: 29 | C31: 27398 | D31: ΚΟΤΣΑΡΙΝΗΣ ΒΑΣΙΛΕΙΟΣ | E31: 31.8 | F31: 1999 | G31: Α.Γ.Ο.ΦΙΛΙΠΠΙΑΔΑΣ | J31: =IF(D31>" ",IF(E31>=0,E31+tmp!G8,tmp!G8),0) -> 31.84489468
A32: 30 | C32: 27874 | D32: ΒΛΑΧΟΝΙΚΟΛΟΣ ΠΑΝΑΓΙΩΤΗΣ | E32: 31 | F32: 1998 | G32: ΡΟΔΙΑΚΟΣ Ο.Α. | J32: =IF(D32>" ",IF(E32>=0,E32+tmp!G20,tmp!G20),0) -> 31.033994
A33: 31 | C33: 22656 | D33: ΤΖΩΡΤΖΟΣ ΣΤΑΥΡΟΣ | E33: 31 | F33: 1999 | G33: Α.Ο.Α.ΣΤΑΥΡΟΥΠΟΛΗΣ ΙΦΙΤΟΣ | J33: =IF(D33>" ",IF(E33>=0,E33+tmp!G13,tmp!G13),0) -> 31.0133956
A34: 32 | C34: 27879 | D34: ΚΙΣΣΑΣ ΧΡΗΣΤΟΣ-ΕΥΑΓΓΕΛΟΣ | E34: 29 | F34: 1998 | G34: Α.Ο.ΣΙΚΥΩΝΟΣ ΚΙΑΤΟΥ | J34: =IF(D34>" ",IF(E34>=0,E34+tmp!G3,tmp!G3),0) -> 29.02905445
B37: Walk over | E37: med
B38: α/α | C38: Α.Μ. | D38: Ονοματεπώνυμο | E38: Ν ή Ο
B39: 1
B40: 2
B41: 3
B42: 4
B43: 5

Sheet Draw32
A1: =Setup!B3 & ", " & Setup!B4 & ", " & Setup!B6 & ", " & Setup!B8 & "-" & Setup!B9 -> Η' ΕΝΩΣΗ, 3ο Ενωσιακό, Αττικός Ήλιος, 4-6 Μαι 2012 | T1: =Setup!B7 -> Α14
B2: =Setup!B18 -> 0
J3: 32 | N3: 16 | P3: 8 | R3: 4 | T3: 2 & w
A4: α/α | C4: ByeOrder | D4: ByeSum | E4: ByeCnt | F4: από | G4: seed | H4: Pts | I4: Α.Μ. | J4: Ονοματεπώνυμο | K4: επώνυμο | L4: Σύλλογος
A5: 1 | B5: 1 | E5: 0 | F5: =IF(NOT($G5="-"),VLOOKUP($G5,DrawPrep!$A$3:$G$34,2,FALSE),"") -> 0 | G5: =VLOOKUP($B5,Setup!$K$2:$L$33,2,FALSE) -> 1 | H5: =IF($G5>0,VLOOKUP($G5,DrawPrep!$A$3:$G$34,5,FALSE),0) -> 190 | I5: =IF($G5>0,VLOOKUP($G5,DrawPrep!$A$3:$G$34,3,FALSE),0) -> 25438 | J5: =IF($I5>0,VLOOKUP($I5,DrawPrep!$C$3:$G$34,2,FALSE),"bye") -> ΤΣΙΤΣΙΠΑΣ ΣΤΕΦΑΝΟΣ | K5: =IF($I5>0,LEFT(J5,FIND(" ",J5)-1),"") -> ΤΣΙΤΣΙΠΑΣ | L5: =IF($I5>0,VLOOKUP($I5,DrawPrep!$C$3:$G$34,5,FALSE),"") -> Ο.Α.ΓΛΥΦΑΔΑΣ | M5: 1 | N5: =UPPER(IF($A$2="R",IF(OR(M5=1,M5="a"),I5,IF(OR(M5=2,M5="b"),I6,"")),IF(OR(M5=1,M5="1"),K5,IF(OR(M5=2,M5="b"),K6,"")))) -> ΤΣΙΤΣΙΠΑΣ
A6: 2 | B6: =1-D6+8 -> 9 | C6: =B5 -> 1 | D6: =E6 -> 0 | E6: =IF($B$2>=C6,1,0) -> 0 | F6: =IF(NOT($G6="-"),VLOOKUP($G6,DrawPrep!$A$3:$G$34,2,FALSE),"") -> 0 | G6: =IF($B$2>=C6,"-",VLOOKUP($B6,Setup!$K$2:$L$33,2,FALSE)) -> 29 | H6: =IF(NOT($G6="-"),VLOOKUP($G6,DrawPrep!$A$3:$G$34,5,FALSE),0) -> 31.8 | I6: =IF(NOT($G6="-"),VLOOKUP($G6,DrawPrep!$A$3:$G$34,3,FALSE),0) -> 27398 | J6: =IF($I6>0,VLOOKUP($I6,DrawPrep!$C$3:$G$34,2,FALSE),"bye") -> ΚΟΤΣΑΡΙΝΗΣ ΒΑΣΙΛΕΙΟΣ | K6: =IF($I6>0,LEFT(J6,FIND(" ",J6)-1),"") -> ΚΟΤΣΑΡΙΝΗΣ | L6: =IF($I6>0,VLOOKUP($I6,DrawPrep!$C$3:$G$34,5,FALSE),"") -> Α.Γ.Ο.ΦΙΛΙΠΠΙΑΔΑΣ | O6: 1 | P6: =UPPER(IF($A$2="R",IF(OR(O6=1,O6="a"),N5,IF(OR(O6=2,O6="b"),N7,"")),IF(OR(O6=1,O6="a"),N5,IF(OR(O6=2,O6="b"),N7,"")))) -> ΤΣΙΤΣΙΠΑΣ
A7: 3 | B7: =2-D7+8 -> 10 | D7: =D6+E7 -> 0 | E7: 0 | F7: =IF(NOT($G7="-"),VLOOKUP($G7,DrawPrep!$A$3:$G$34,2,FALSE),"") -> 0 | G7: =VLOOKUP($B7,Setup!$K$2:$L$33,2,FALSE) -> 17 | H7: =IF($G7>0,VLOOKUP($G7,DrawPrep!$A$3:$G$34,5,FALSE),0) -> 46 | I7: =IF($G7>0,VLOOKUP($G7,DrawPrep!$A$3:$G$34,3,FALSE),0) -> 26478 | J7: =IF($I7>0,VLOOKUP($I7,DrawPrep!$C$3:$G$34,2,FALSE),"bye") -> ΚΗΠΟΥΡΟΣ ΣΤΑΥΡΟΣ | K7: =IF($I7>0,LEFT(J7,FIND(" ",J7)-1),"") -> ΚΗΠΟΥΡΟΣ | L7: =IF($I7>0,VLOOKUP($I7,DrawPrep!$C$3:$G$34,5,FALSE),"") -> Ο.Α.ΧΑΝΙΩΝ | M7: 2 | N7: =UPPER(IF($A$2="R",IF(OR(M7=1,M7="a"),I7,IF(OR(M7=2,M7="b"),I8,"")),IF(OR(M7=1,M7="a"),K7,IF(OR(M7=2,M7="b"),K8,"")))) -> ΒΛΑΧΟΝΙΚΟΛΟΣ
A8: 4 | B8: =3-D8+8 -> 11 | C8: 15 | D8: =D7+E8 -> 0 | E8: =IF($B$2>=C8,1,0) -> 0 | F8: =IF(NOT($G8="-"),VLOOKUP($G8,DrawPrep!$A$3:$G$34,2,FALSE),"") -> 0 | G8: =IF($B$2>=C8,"-",VLOOKUP($B8,Setup!$K$2:$L$33,2,FALSE)) -> 30 | H8: =IF(NOT($G8="-"),VLOOKUP($G8,DrawPrep!$A$3:$G$34,5,FALSE),0) -> 31 | I8: =IF(NOT($G8="-"),VLOOKUP($G8,DrawPrep!$A$3:$G$34,3,FALSE),0) -> 27874 | J8: =IF($I8>0,VLOOKUP($I8,DrawPrep!$C$3:$G$34,2,FALSE),"bye") -> ΒΛΑΧΟΝΙΚΟΛΟΣ ΠΑΝΑΓΙΩΤΗΣ | K8: ΒΛΑΧΟΝΙΚΟΛΟΣ | L8: =IF($I8>0,VLOOKUP($I8,DrawPrep!$C$3:$G$34,5,FALSE),"") -> ΡΟΔΙΑΚΟΣ Ο.Α. | Q8: 1 | R8: =UPPER(IF($A$2="R",IF(OR(Q8=1,Q8="a"),P6,IF(OR(Q8=2,Q8="b"),P10,"")),IF(OR(Q8=1,Q8="a"),P6,IF(OR(Q8=2,Q8="b"),P10,"")))) -> ΤΣΙΤΣΙΠΑΣ
A9: 5 | B9: =4-D9+8 -> 12 | D9: 0 | E9: 0 | F9: =IF(NOT($G9="-"),VLOOKUP($G9,DrawPrep!$A$3:$G$34,2,FALSE),"") -> 0 | G9: =VLOOKUP($B9,Setup!$K$2:$L$33,2,FALSE) -> 10 | H9: =IF($G9>0,VLOOKUP($G9,DrawPrep!$A$3:$G$34,5,FALSE),0) -> 58 | I9: =IF($G9>0,VLOOKUP($G9,DrawPrep!$A$3:$G$34,3,FALSE),0) -> 24516 | J9: =IF($I9>0,VLOOKUP($I9,DrawPrep!$C$3:$G$34,2,FALSE),"bye") -> ΒΟΪΝΕΑ ΑΛΕΞΑΝΔΡΟΣ | K9: ΒΟΪΝΕΑ | L9: =IF($I9>0,VLOOKUP($I9,DrawPrep!$C$3:$G$34,5,FALSE),"") -> Ο.Α.ΒΟΥΛΙΑΓΜΕΝΗΣ ΜΙΚΡΟΙ ΑΣΣΟΙ | M9: 1 | N9: =UPPER(IF($A$2="R",IF(OR(M9=1,M9="a"),I9,IF(OR(M9=2,M9="b"),I10,"")),IF(OR(M9=1,M9="a"),K9,IF(OR(M9=2,M9="b"),K10,"")))) -> ΒΟΪΝΕΑ
A10: 6 | B10: =5-D10+8 -> 13 | C10: 9 | D10: 0 | E10: =IF($B$2>=C10,1,0) -> 0 | F10: =IF(NOT($G10="-"),VLOOKUP($G10,DrawPrep!$A$3:$G$34,2,FALSE),"") -> 0 | G10: =IF($B$2>=C10,"-",VLOOKUP($B10,Setup!$K$2:$L$33,2,FALSE)) -> 11 | H10: =IF(NOT($G10="-"),VLOOKUP($G10,DrawPrep!$A$3:$G$34,5,FALSE),0) -> 58 | I10: =IF(NOT($G10="-"),VLOOKUP($G10,DrawPrep!$A$3:$G$34,3,FALSE),0) -> 26317 | J10: =IF($I10>0,VLOOKUP($I10,DrawPrep!$C$3:$G$34,2,FALSE),"bye") -> ΚΩΣΤΑΡΑΣ ΠΑΝΑΓΙΩΤΗΣ | K10: ΚΩΣΤΑΡΑΣ | L10: =IF($I10>0,VLOOKUP($I10,DrawPrep!$C$3:$G$34,5,FALSE),"") -> Ο.Α.ΠΕΤΡΟΥΠΟΛΗΣ | O10: 2 | P10: =UPPER(IF($A$2="R",IF(OR(O10=1,O10="a"),N9,IF(OR(O10=2,O10="b"),N11,"")),IF(OR(O10=1,O10="a"),N9,IF(OR(O10=2,O10="b"),N11,"")))) -> ΑΝΔΡΩΝΗΣ
A11: 7 | B11: =6-D11+8 -> 14 | C11: =B12 -> 8 | D11: 0 | E11: =IF($B$2>=C11,1,0) -> 0 | F11: =IF(NOT($G11="-"),VLOOKUP($G11,DrawPrep!$A$3:$G$34,2,FALSE),"") -> 0 | G11: =IF($B$2>=C11,"-",VLOOKUP($B11,Setup!$K$2:$L$33,2,FALSE)) -> 18 | H11: =IF(NOT($G11="-"),VLOOKUP($G11,DrawPrep!$A$3:$G$34,5,FALSE),0) -> 46 | I11: =IF(NOT($G11="-"),VLOOKUP($G11,DrawPrep!$A$3:$G$34,3,FALSE),0) -> 26389 | J11: =IF($I11>0,VLOOKUP($I11,DrawPrep!$C$3:$G$34,2,FALSE),"bye") -> ΒΑΡΔΑΚΗΣ ΒΑΣΙΛΕΙΟΣ | K11: ΒΑΡΔΑΚΗΣ | L11: =IF($I11>0,VLOOKUP($I11,DrawPrep!$C$3:$G$34,5,FALSE),"") -> ΑΚΑΔ.ΑΝΤΙΣΦ.ΙΩΑΝΝΙΝΩΝ | M11: 2 | N11: =UPPER(IF($A$2="R",IF(OR(M11=1,M11="a"),I11,IF(OR(M11=2,M11="b"),I12,"")),IF(OR(M11=1,M11="a"),K11,IF(OR(M11=2,M11="b"),K12,"")))) -> ΑΝΔΡΩΝΗΣ
A12: 8 | B12: =VALUE(Setup!E5) -> 8 | D12: 0 | E12: 0 | F12: =IF(NOT($G12="-"),VLOOKUP($G12,DrawPrep!$A$3:$G$34,2,FALSE),"") -> 0 | G12: =VLOOKUP($B12,Setup!$K$2:$L$33,2,FALSE) -> 8 | H12: =IF($G12>0,VLOOKUP($G12,DrawPrep!$A$3:$G$34,5,FALSE),0) -> 60 | I12: =IF($G12>0,VLOOKUP($G12,DrawPrep!$A$3:$G$34,3,FALSE),0) -> 26190 | J12: =IF($I12>0,VLOOKUP($I12,DrawPrep!$C$3:$G$34,2,FALSE),"bye") -> ΑΝΔΡΩΝΗΣ ΙΩΑΝΝΗΣ | K12: ΑΝΔΡΩΝΗΣ | L12: =IF($I12>0,VLOOKUP($I12,DrawPrep!$C$3:$G$34,5,FALSE),"") -> Ο.Α.ΑΓΙΑΣ ΠΑΡΑΣΚΕΥΗΣ | S12: 1 | T12: =UPPER(IF($A$2="R",IF(OR(S12=1,S12="a"),R8,IF(OR(S12=2,S12="b"),R16,"")),IF(OR(S12=1,S12="a"),R8,IF(OR(S12=2,S12="b"),R16,"")))) -> ΤΣΙΤΣΙΠΑΣ
A13: 9 | B13: =VALUE(Setup!E2) -> 3 | D13: 0 | E13: 0 | F13: =IF(NOT($G13="-"),VLOOKUP($G13,DrawPrep!$A$3:$G$34,2,FALSE),"") -> 0 | G13: =VLOOKUP($B13,Setup!$K$2:$L$33,2,FALSE) -> 3 | H13: =IF($G13>0,VLOOKUP($G13,DrawPrep!$A$3:$G$34,5,FALSE),0) -> 160 | I13: =IF($G13>0,VLOOKUP($G13,DrawPrep!$A$3:$G$34,3,FALSE),0) -> 25875 | J13: =IF($I13>0,VLOOKUP($I13,DrawPrep!$C$3:$G$34,2,FALSE),"bye") -> ΛΑΖΑΡΙΔΗΣ ΚΩΝΣΤΑΝΤΙΝΟΣ | K13: ΛΑΖΑΡΙΔΗΣ | L13: =IF($I13>0,VLOOKUP($I13,DrawPrep!$C$3:$G$34,5,FALSE),"") -> Ε.Σ.Ο.ΕΠΙΚΟΥΡΟΣ ΠΟΛΙΧΝΗΣ | M13: 1 | N13: =UPPER(IF($A$2="R",IF(OR(M13=1,M13="a"),I13,IF(OR(M13=2,M13="b"),I14,"")),IF(OR(M13=1,M13="a"),K13,IF(OR(M13=2,M13="b"),K14,"")))) -> ΛΑΖΑΡΙΔΗΣ
A14: 10 | B14: =7-D14+8 -> 15 | C14: =B13 -> 3 | D14: 0 | E14: =IF($B$2>=C14,1,0) -> 0 | F14: =IF(NOT($G14="-"),VLOOKUP($G14,DrawPrep!$A$3:$G$34,2,FALSE),"") -> 0 | G14: =IF($B$2>=C14,"-",VLOOKUP($B14,Setup!$K$2:$L$33,2,FALSE)) -> 24 | H14: =IF(NOT($G14="-"),VLOOKUP($G14,DrawPrep!$A$3:$G$34,5,FALSE),0) -> 41 | I14: =IF(NOT($G14="-"),VLOOKUP($G14,DrawPrep!$A$3:$G$34,3,FALSE),0) -> 28285 | J14: =IF($I14>0,VLOOKUP($I14,DrawPrep!$C$3:$G$34,2,FALSE),"bye") -> ΠΗΛΙΟΥΝΗΣ ΜΙΧΑΗΛ | K14: ΠΗΛΙΟΥΝΗΣ | L14: =IF($I14>0,VLOOKUP($I14,DrawPrep!$C$3:$G$34,5,FALSE),"") -> Ο.Α.ΒΟΥΛΙΑΓΜΕΝΗΣ ΜΙΚΡΟΙ ΑΣΣΟΙ | O14: 1 | P14: =UPPER(IF($A$2="R",IF(OR(O14=1,O14="a"),N13,IF(OR(O14=2,O14="b"),N15,"")),IF(OR(O14=1,O14="a"),N13,IF(OR(O14=2,O14="b"),N15,"")))) -> ΛΑΖΑΡΙΔΗΣ
A15: 11 | B15: =8-D15+8 -> 16 | D15: 0 | E15: 0 | F15: =IF(NOT($G15="-"),VLOOKUP($G15,DrawPrep!$A$3:$G$34,2,FALSE),"") -> 0 | G15: =VLOOKUP($B15,Setup!$K$2:$L$33,2,FALSE) -> 15 | H15: =IF($G15>0,VLOOKUP($G15,DrawPrep!$A$3:$G$34,5,FALSE),0) -> 49 | I15: =IF($G15>0,VLOOKUP($G15,DrawPrep!$A$3:$G$34,3,FALSE),0) -> 28396 | J15: =IF($I15>0,VLOOKUP($I15,DrawPrep!$C$3:$G$34,2,FALSE),"bye") -> ΛΑΜΠΡΟΠΟΥΛΟΣ ΙΟΒΑΝ-ΑΛΕΞΑΝΤΕΡ | K15: ΛΑΜΠΡΟΠΟΥΛΟΣ | L15: =IF($I15>0,VLOOKUP($I15,DrawPrep!$C$3:$G$34,5,FALSE),"") -> Ο.Α.ΒΟΥΛΙΑΓΜΕΝΗΣ ΜΙΚΡΟΙ ΑΣΣΟΙ | M15: 2 | N15: =UPPER(IF($A$2="R",IF(OR(M15=1,M15="a"),I15,IF(OR(M15=2,M15="b"),I16,"")),IF(OR(M15=1,M15="a"),K15,IF(OR(M15=2,M15="b"),K16,"")))) -> ΚΑΤΣΑΛΗΣ
A16: 12 | B16: =9-D16+8 -> 17 | C16: 13 | D16: 0 | E16: =IF($B$2>=C16,1,0) -> 0 | F16: =IF(NOT($G16="-"),VLOOKUP($G16,DrawPrep!$A$3:$G$34,2,FALSE),"") -> 0 | G16: =IF($B$2>=C16,"-",VLOOKUP($B16,Setup!$K$2:$L$33,2,FALSE)) -> 13 | H16: =IF(NOT($G16="-"),VLOOKUP($G16,DrawPrep!$A$3:$G$34,5,FALSE),0) -> 55 | I16: =IF(NOT($G16="-"),VLOOKUP($G16,DrawPrep!$A$3:$G$34,3,FALSE),0) -> 23040 | J16: =IF($I16>0,VLOOKUP($I16,DrawPrep!$C$3:$G$34,2,FALSE),"bye") -> ΚΑΤΣΑΛΗΣ ΚΩΝΣΤΑΝΤΙΝΟΣ | K16: ΚΑΤΣΑΛΗΣ | L16: =IF($I16>0,VLOOKUP($I16,DrawPrep!$C$3:$G$34,5,FALSE),"") -> Α.Σ.Α.ΛΑΡΙΣΑΣ | Q16: 2 | R16: =UPPER(IF($A$2="R",IF(OR(Q16=1,Q16="a"),P14,IF(OR(Q16=2,Q16="b"),P18,"")),IF(OR(Q16=1,Q16="a"),P14,IF(OR(Q16=2,Q16="b"),P18,"")))) -> ΗΛΙΟΠΟΥΛΟΣ
A17: 13 | B17: =10-D17+8 -> 18 | D17: 0 | E17: 0 | F17: =IF(NOT($G17="-"),VLOOKUP($G17,DrawPrep!$A$3:$G$34,2,FALSE),"") -> 0 | G17: =VLOOKUP($B17,Setup!$K$2:$L$33,2,FALSE) -> 12 | H17: =IF($G17>0,VLOOKUP($G17,DrawPrep!$A$3:$G$34,5,FALSE),0) -> 56 | I17: =IF($G17>0,VLOOKUP($G17,DrawPrep!$A$3:$G$34,3,FALSE),0) -> 26297 | J17: =IF($I17>0,VLOOKUP($I17,DrawPrep!$C$3:$G$34,2,FALSE),"bye") -> ΑΓΙΟΥΣ ΓΕΩΡΓΙΟΣ | K17: ΑΓΙΟΥΣ | L17: =IF($I17>0,VLOOKUP($I17,DrawPrep!$C$3:$G$34,5,FALSE),"") -> ΚΕΡΚΥΡΑΪΚΗ Λ.Τ. | M17: 1 | N17: =UPPER(IF($A$2="R",IF(OR(M17=1,M17="a"),I17,IF(OR(M17=2,M17="b"),I18,"")),IF(OR(M17=1,M17="a"),K17,IF(OR(M17=2,M17="b"),K18,"")))) -> ΑΓΙΟΥΣ
A18: 14 | B18: =11-D18+8 -> 19 | C18: 11 | D18: 0 | E18: =IF($B$2>=C18,1,0) -> 0 | F18: =IF(NOT($G18="-"),VLOOKUP($G18,DrawPrep!$A$3:$G$34,2,FALSE),"") -> 0 | G18: =IF($B$2>=C18,"-",VLOOKUP($B18,Setup!$K$2:$L$33,2,FALSE)) -> 19 | H18: =IF(NOT($G18="-"),VLOOKUP($G18,DrawPrep!$A$3:$G$34,5,FALSE),0) -> 46 | I18: =IF(NOT($G18="-"),VLOOKUP($G18,DrawPrep!$A$3:$G$34,3,FALSE),0) -> 24511 | J18: =IF($I18>0,VLOOKUP($I18,DrawPrep!$C$3:$G$34,2,FALSE),"bye") -> ΙΩΑΝΝΙΔΗΣ ΝΙΚΟΛΑΟΣ | K18: ΙΩΑΝΝΙΔΗΣ | L18: =IF($I18>0,VLOOKUP($I18,DrawPrep!$C$3:$G$34,5,FALSE),"") -> Α.Ο.Α.ΦΙΛΟΘΕΗΣ | O18: 2 | P18: =UPPER(IF($A$2="R",IF(OR(O18=1,O18="a"),N17,IF(OR(O18=2,O18="b"),N19,"")),IF(OR(O18=1,O18="a"),N17,IF(OR(O18=2,O18="b"),N19,"")))) -> ΗΛΙΟΠΟΥΛΟΣ
A19: 15 | B19: =12-D19+8 -> 20 | C19: =B20 -> 5 | D19: 0 | E19: =IF($B$2>=C19,1,0) -> 0 | F19: =IF(NOT($G19="-"),VLOOKUP($G19,DrawPrep!$A$3:$G$34,2,FALSE),"") -> 0 | G19: =IF($B$2>=C19,"-",VLOOKUP($B19,Setup!$K$2:$L$33,2,FALSE)) -> 32 | H19: =IF(NOT($G19="-"),VLOOKUP($G19,DrawPrep!$A$3:$G$34,5,FALSE),0) -> 29 | I19: =IF(NOT($G19="-"),VLOOKUP($G19,DrawPrep!$A$3:$G$34,3,FALSE),0) -> 27879 | J19: =IF($I19>0,VLOOKUP($I19,DrawPrep!$C$3:$G$34,2,FALSE),"bye") -> ΚΙΣΣΑΣ ΧΡΗΣΤΟΣ-ΕΥΑΓΓΕΛΟΣ | K19: ΚΙΣΣΑΣ | L19: =IF($I19>0,VLOOKUP($I19,DrawPrep!$C$3:$G$34,5,FALSE),"") -> Α.Ο.ΣΙΚΥΩΝΟΣ ΚΙΑΤΟΥ | M19: 2 | N19: =UPPER(IF($A$2="R",IF(OR(M19=1,M19="a"),I19,IF(OR(M19=2,M19="b"),I20,"")),IF(OR(M19=1,M19="a"),K19,IF(OR(M19=2,M19="b"),K20,"")))) -> ΗΛΙΟΠΟΥΛΟΣ
A20: 16 | B20: =VALUE(Setup!E6) -> 5 | D20: 0 | E20: 0 | F20: =IF(NOT($G20="-"),VLOOKUP($G20,DrawPrep!$A$3:$G$34,2,FALSE),"") -> 0 | G20: =VLOOKUP($B20,Setup!$K$2:$L$33,2,FALSE) -> 5 | H20: =IF($G20>0,VLOOKUP($G20,DrawPrep!$A$3:$G$34,5,FALSE),0) -> 140 | I20: =IF($G20>0,VLOOKUP($G20,DrawPrep!$A$3:$G$34,3,FALSE),0) -> 24845 | J20: =IF($I20>0,VLOOKUP($I20,DrawPrep!$C$3:$G$34,2,FALSE),"bye") -> ΗΛΙΟΠΟΥΛΟΣ ΒΑΣΙΛΗΣ | K20: ΗΛΙΟΠΟΥΛΟΣ | L20: =IF($I20>0,VLOOKUP($I20,DrawPrep!$C$3:$G$34,5,FALSE),"") -> Α.Ο.Α.ΦΙΛΟΘΕΗΣ | S20: 2 | T20: =UPPER(IF($A$2="R",IF(OR(S20=1,S20="a"),T12,IF(OR(S20=2,S20="b"),T28,"")),IF(OR(S20=1,S20="a"),T12,IF(OR(S20=2,S20="b"),T28,"")))) -> ΣΤΑΥΡΑΚΑΣ
A21: 17 | B21: =VALUE(Setup!E7) -> 6 | D21: 0 | E21: 0 | F21: =IF(NOT($G21="-"),VLOOKUP($G21,DrawPrep!$A$3:$G$34,2,FALSE),"") -> 0 | G21: =VLOOKUP($B21,Setup!$K$2:$L$33,2,FALSE) -> 6 | H21: =IF($G21>0,VLOOKUP($G21,DrawPrep!$A$3:$G$34,5,FALSE),0) -> 61 | I21: =IF($G21>0,VLOOKUP($G21,DrawPrep!$A$3:$G$34,3,FALSE),0) -> 25297 | J21: =IF($I21>0,VLOOKUP($I21,DrawPrep!$C$3:$G$34,2,FALSE),"bye") -> ΚΑΠΙΡΗΣ ΣΤΑΜΑΤΗΣ | K21: ΚΑΠΙΡΗΣ | L21: =IF($I21>0,VLOOKUP($I21,DrawPrep!$C$3:$G$34,5,FALSE),"") -> Α.Ο.Α.ΦΙΛΟΘΕΗΣ | M21: 2 | N21: =UPPER(IF($A$2="R",IF(OR(M21=1,M21="a"),I21,IF(OR(M21=2,M21="b"),I22,"")),IF(OR(M21=1,M21="a"),K21,IF(OR(M21=2,M21="b"),K22,"")))) -> ΣΤΑΥΡΑΚΑΣ
A22: 18 | B22: =13-D22+8 -> 21 | C22: =B21 -> 6 | D22: 0 | E22: =IF($B$2>=C22,1,0) -> 0 | F22: =IF(NOT($G22="-"),VLOOKUP($G22,DrawPrep!$A$3:$G$34,2,FALSE),"") -> 0 | G22: =IF($B$2>=C22,"-",VLOOKUP($B22,Setup!$K$2:$L$33,2,FALSE)) -> 20 | H22: =IF(NOT($G22="-"),VLOOKUP($G22,DrawPrep!$A$3:$G$34,5,FALSE),0) -> 43 | I22: =IF(NOT($G22="-"),VLOOKUP($G22,DrawPrep!$A$3:$G$34,3,FALSE),0) -> 27180 | J22: =IF($I22>0,VLOOKUP($I22,DrawPrep!$C$3:$G$34,2,FALSE),"bye") -> ΣΤΑΥΡΑΚΑΣ ΜΙΝΩΣ-ΚΙΜΩΝ | K22: ΣΤΑΥΡΑΚΑΣ | L22: =IF($I22>0,VLOOKUP($I22,DrawPrep!$C$3:$G$34,5,FALSE),"") -> Α.Ο.Α.ΦΙΛΟΘΕΗΣ | O22: 1 | P22: =UPPER(IF($A$2="R",IF(OR(O22=1,O22="a"),N21,IF(OR(O22=2,O22="b"),N23,"")),IF(OR(O22=1,O22="a"),N21,IF(OR(O22=2,O22="b"),N23,"")))) -> ΣΤΑΥΡΑΚΑΣ
A23: 19 | B23: =14-D23+8 -> 22 | D23: 0 | E23: 0 | F23: =IF(NOT($G23="-"),VLOOKUP($G23,DrawPrep!$A$3:$G$34,2,FALSE),"") -> 0 | G23: =VLOOKUP($B23,Setup!$K$2:$L$33,2,FALSE) -> 22 | H23: =IF($G23>0,VLOOKUP($G23,DrawPrep!$A$3:$G$34,5,FALSE),0) -> 41 | I23: =IF($G23>0,VLOOKUP($G23,DrawPrep!$A$3:$G$34,3,FALSE),0) -> 28144 | J23: =IF($I23>0,VLOOKUP($I23,DrawPrep!$C$3:$G$34,2,FALSE),"bye") -> ΚΑΛΑΜΠΑΚΑΣ ΑΝΑΣΤΑΣΙΟΣ | K23: ΚΑΛΑΜΠΑΚΑΣ | L23: =IF($I23>0,VLOOKUP($I23,DrawPrep!$C$3:$G$34,5,FALSE),"") -> Α.Σ.Α.ΛΑΡΙΣΑΣ | M23: 2 | N23: =UPPER(IF($A$2="R",IF(OR(M23=1,M23="a"),I23,IF(OR(M23=2,M23="b"),I24,"")),IF(OR(M23=1,M23="a"),K23,IF(OR(M23=2,M23="b"),K24,"")))) -> ΣΑΚΕΛΛΑΡΙΔΗΣ
A24: 20 | B24: =15-D24+8 -> 23 | C24: 12 | D24: 0 | E24: =IF($B$2>=C24,1,0) -> 0 | F24: =IF(NOT($G24="-"),VLOOKUP($G24,DrawPrep!$A$3:$G$34,2,FALSE),"") -> 0 | G24: =IF($B$2>=C24,"-",VLOOKUP($B24,Setup!$K$2:$L$33,2,FALSE)) -> 14 | H24: =IF(NOT($G24="-"),VLOOKUP($G24,DrawPrep!$A$3:$G$34,5,FALSE),0) -> 53 | I24: =IF(NOT($G24="-"),VLOOKUP($G24,DrawPrep!$A$3:$G$34,3,FALSE),0) -> 30054 | J24: =IF($I24>0,VLOOKUP($I24,DrawPrep!$C$3:$G$34,2,FALSE),"bye") -> ΣΑΚΕΛΛΑΡΙΔΗΣ ΜΙΧΑΛΗΣ | K24: ΣΑΚΕΛΛΑΡΙΔΗΣ | L24: =IF($I24>0,VLOOKUP($I24,DrawPrep!$C$3:$G$34,5,FALSE),"") -> Ο.Α.ΑΓΙΑΣ ΠΑΡΑΣΚΕΥΗΣ | Q24: 1 | R24: =UPPER(IF($A$2="R",IF(OR(Q24=1,Q24="a"),P22,IF(OR(Q24=2,Q24="b"),P26,"")),IF(OR(Q24=1,Q24="a"),P22,IF(OR(Q24=2,Q24="b"),P26,"")))) -> ΣΤΑΥΡΑΚΑΣ
A25: 21 | B25: =16-D25+8 -> 24 | D25: 0 | E25: 0 | F25: =IF(NOT($G25="-"),VLOOKUP($G25,DrawPrep!$A$3:$G$34,2,FALSE),"") -> 0 | G25: =VLOOKUP($B25,Setup!$K$2:$L$33,2,FALSE) -> 21 | H25: =IF($G25>0,VLOOKUP($G25,DrawPrep!$A$3:$G$34,5,FALSE),0) -> 41 | I25: =IF($G25>0,VLOOKUP($G25,DrawPrep!$A$3:$G$34,3,FALSE),0) -> 27583 | J25: =IF($I25>0,VLOOKUP($I25,DrawPrep!$C$3:$G$34,2,FALSE),"bye") -> ΠΑΧΑΚΗΣ ΝΙΚΟΛΑΟΣ-ΑΝΔΡΕΑΣ | K25: ΠΑΧΑΚΗΣ | L25: =IF($I25>0,VLOOKUP($I25,DrawPrep!$C$3:$G$34,5,FALSE),"") -> Α.Ο.Α.ΗΛΙΟΥΠΟΛΗΣ | M25: 1 | N25: =UPPER(IF($A$2="R",IF(OR(M25=1,M25="a"),I25,IF(OR(M25=2,M25="b"),I26,"")),IF(OR(M25=1,M25="a"),K25,IF(OR(M25=2,M25="b"),K26,"")))) -> ΠΑΧΑΚΗΣ
A26: 22 | B26: =17-D26+8 -> 25 | C26: 14 | D26: 0 | E26: =IF($B$2>=C26,1,0) -> 0 | F26: =IF(NOT($G26="-"),VLOOKUP($G26,DrawPrep!$A$3:$G$34,2,FALSE),"") -> 0 | G26: =IF($B$2>=C26,"-",VLOOKUP($B26,Setup!$K$2:$L$33,2,FALSE)) -> 28 | H26: =IF(NOT($G26="-"),VLOOKUP($G26,DrawPrep!$A$3:$G$34,5,FALSE),0) -> 34 | I26: =IF(NOT($G26="-"),VLOOKUP($G26,DrawPrep!$A$3:$G$34,3,FALSE),0) -> 22876 | J26: =IF($I26>0,VLOOKUP($I26,DrawPrep!$C$3:$G$34,2,FALSE),"bye") -> ΓΕΡΟΥΚΗΣ ΒΑΣΙΛΕΙΟΣ | K26: ΓΕΡΟΥΚΗΣ | L26: =IF($I26>0,VLOOKUP($I26,DrawPrep!$C$3:$G$34,5,FALSE),"") -> Ο.Α.ΝΙΚΑΙΑ ΛΑΡΙΣΑΣ | O26: 2 | P26: =UPPER(IF($A$2="R",IF(OR(O26=1,O26="a"),N25,IF(OR(O26=2,O26="b"),N27,"")),IF(OR(O26=1,O26="a"),N25,IF(OR(O26=2,O26="b"),N27,"")))) -> ΤΣΙΡΑΝΙΔΗΣ
A27: 23 | B27: =18-D27+8 -> 26 | C27: =B28 -> 4 | D27: 0 | E27: =IF($B$2>=C27,1,0) -> 0 | F27: =IF(NOT($G27="-"),VLOOKUP($G27,DrawPrep!$A$3:$G$34,2,FALSE),"") -> 0 | G27: =IF($B$2>=C27,"-",VLOOKUP($B27,Setup!$K$2:$L$33,2,FALSE)) -> 16 | H27: =IF(NOT($G27="-"),VLOOKUP($G27,DrawPrep!$A$3:$G$34,5,FALSE),0) -> 48 | I27: =IF(NOT($G27="-"),VLOOKUP($G27,DrawPrep!$A$3:$G$34,3,FALSE),0) -> 30186 | J27: =IF($I27>0,VLOOKUP($I27,DrawPrep!$C$3:$G$34,2,FALSE),"bye") -> ΠΙΤΣΙΝΗΣ ΔΗΜΗΤΡΙΟΣ | K27: ΠΙΤΣΙΝΗΣ | L27: =IF($I27>0,VLOOKUP($I27,DrawPrep!$C$3:$G$34,5,FALSE),"") -> Ο.Α.ΧΑΛΚΙΔΑΣ | M27: 2 | N27: =UPPER(IF($A$2="R",IF(OR(M27=1,M27="a"),I27,IF(OR(M27=2,M27="b"),I28,"")),IF(OR(M27=1,M27="a"),K27,IF(OR(M27=2,M27="b"),K28,"")))) -> ΤΣΙΡΑΝΙΔΗΣ
A28: 24 | B28: =VALUE(Setup!E3) -> 4 | D28: 0 | E28: 0 | F28: =IF(NOT($G28="-"),VLOOKUP($G28,DrawPrep!$A$3:$G$34,2,FALSE),"") -> 0 | G28: =VLOOKUP($B28,Setup!$K$2:$L$33,2,FALSE) -> 4 | H28: =IF($G28>0,VLOOKUP($G28,DrawPrep!$A$3:$G$34,5,FALSE),0) -> 140 | I28: =IF($G28>0,VLOOKUP($G28,DrawPrep!$A$3:$G$34,3,FALSE),0) -> 23517 | J28: =IF($I28>0,VLOOKUP($I28,DrawPrep!$C$3:$G$34,2,FALSE),"bye") -> ΤΣΙΡΑΝΙΔΗΣ ΕΥΣΤΑΘΙΟΣ | K28: ΤΣΙΡΑΝΙΔΗΣ | L28: =IF($I28>0,VLOOKUP($I28,DrawPrep!$C$3:$G$34,5,FALSE),"") -> Ο.Α.ΤΟΥΜΠΑΣ | S28: 1 | T28: =UPPER(IF($A$2="R",IF(OR(S28=1,S28="a"),R24,IF(OR(S28=2,S28="b"),R32,"")),IF(OR(S28=1,S28="a"),R24,IF(OR(S28=2,S28="b"),R32,"")))) -> ΣΤΑΥΡΑΚΑΣ
A29: 25 | B29: =VALUE(Setup!E8) -> 7 | D29: 0 | E29: 0 | F29: =IF(NOT($G29="-"),VLOOKUP($G29,DrawPrep!$A$3:$G$34,2,FALSE),"") -> 0 | G29: =VLOOKUP($B29,Setup!$K$2:$L$33,2,FALSE) -> 7 | H29: =IF($G29>0,VLOOKUP($G29,DrawPrep!$A$3:$G$34,5,FALSE),0) -> 60 | I29: =IF($G29>0,VLOOKUP($G29,DrawPrep!$A$3:$G$34,3,FALSE),0) -> 22866 | J29: =IF($I29>0,VLOOKUP($I29,DrawPrep!$C$3:$G$34,2,FALSE),"bye") -> ΚΟΝΤΟΠΟΥΛΟΣ ΘΕΟΦΑΝΗΣ | K29: ΚΟΝΤΟΠΟΥΛΟΣ | L29: =IF($I29>0,VLOOKUP($I29,DrawPrep!$C$3:$G$34,5,FALSE),"") -> Ο.Α.ΚΟΡΙΝΘΟΥ | M29: 1 | N29: =UPPER(IF($A$2="R",IF(OR(M29=1,M29="a"),I29,IF(OR(M29=2,M29="b"),I30,"")),IF(OR(M29=1,M29="a"),K29,IF(OR(M29=2,M29="b"),K30,"")))) -> ΚΟΝΤΟΠΟΥΛΟΣ
A30: 26 | B30: =19-D30+8 -> 27 | C30: =B29 -> 7 | D30: 0 | E30: =IF($B$2>=C30,1,0) -> 0 | F30: =IF(NOT($G30="-"),VLOOKUP($G30,DrawPrep!$A$3:$G$34,2,FALSE),"") -> 0 | G30: =IF($B$2>=C30,"-",VLOOKUP($B30,Setup!$K$2:$L$33,2,FALSE)) -> 31 | H30: =IF(NOT($G30="-"),VLOOKUP($G30,DrawPrep!$A$3:$G$34,5,FALSE),0) -> 31 | I30: =IF(NOT($G30="-"),VLOOKUP($G30,DrawPrep!$A$3:$G$34,3,FALSE),0) -> 22656 | J30: =IF($I30>0,VLOOKUP($I30,DrawPrep!$C$3:$G$34,2,FALSE),"bye") -> ΤΖΩΡΤΖΟΣ ΣΤΑΥΡΟΣ | K30: ΤΖΩΡΤΖΟΣ | L30: =IF($I30>0,VLOOKUP($I30,DrawPrep!$C$3:$G$34,5,FALSE),"") -> Α.Ο.Α.ΣΤΑΥΡΟΥΠΟΛΗΣ ΙΦΙΤΟΣ | O30: 1 | P30: =UPPER(IF($A$2="R",IF(OR(O30=1,O30="a"),N29,IF(OR(O30=2,O30="b"),N31,"")),IF(OR(O30=1,O30="a"),N29,IF(OR(O30=2,O30="b"),N31,"")))) -> ΚΟΝΤΟΠΟΥΛΟΣ
A31: 27 | B31: =20-D31+8 -> 28 | D31: 0 | E31: 0 | F31: =IF(NOT($G31="-"),VLOOKUP($G31,DrawPrep!$A$3:$G$34,2,FALSE),"") -> 0 | G31: =VLOOKUP($B31,Setup!$K$2:$L$33,2,FALSE) -> 23 | H31: =IF($G31>0,VLOOKUP($G31,DrawPrep!$A$3:$G$34,5,FALSE),0) -> 41 | I31: =IF($G31>0,VLOOKUP($G31,DrawPrep!$A$3:$G$34,3,FALSE),0) -> 26914 | J31: =IF($I31>0,VLOOKUP($I31,DrawPrep!$C$3:$G$34,2,FALSE),"bye") -> ΒΡΑΝΑΣ ΘΕΜΗΣ | K31: ΒΡΑΝΑΣ | L31: =IF($I31>0,VLOOKUP($I31,DrawPrep!$C$3:$G$34,5,FALSE),"") -> Α.Ο.Α.ΦΙΛΟΘΕΗΣ | M31: 2 | N31: =UPPER(IF($A$2="R",IF(OR(M31=1,M31="a"),I31,IF(OR(M31=2,M31="b"),I32,"")),IF(OR(M31=1,M31="a"),K31,IF(OR(M31=2,M31="b"),K32,"")))) -> ΣΗΜΑΙΟΦΟΡΙΔΗΣ
A32: 28 | B32: =21-D32+8 -> 29 | C32: 10 | D32: 0 | E32: =IF($B$2>=C32,1,0) -> 0 | F32: =IF(NOT($G32="-"),VLOOKUP($G32,DrawPrep!$A$3:$G$34,2,FALSE),"") -> 0 | G32: =IF($B$2>=C32,"-",VLOOKUP($B32,Setup!$K$2:$L$33,2,FALSE)) -> 26 | H32: =IF(NOT($G32="-"),VLOOKUP($G32,DrawPrep!$A$3:$G$34,5,FALSE),0) -> 38 | I32: =IF(NOT($G32="-"),VLOOKUP($G32,DrawPrep!$A$3:$G$34,3,FALSE),0) -> 29274 | J32: =IF($I32>0,VLOOKUP($I32,DrawPrep!$C$3:$G$34,2,FALSE),"bye") -> ΣΗΜΑΙΟΦΟΡΙΔΗΣ ΧΑΡΑΛΑΜΠΟΣ | K32: ΣΗΜΑΙΟΦΟΡΙΔΗΣ | L32: =IF($I32>0,VLOOKUP($I32,DrawPrep!$C$3:$G$34,5,FALSE),"") -> ΠΕΥΚΗ-Γ.ΚΑΛΟΒΕΛΩΝΗΣ | Q32: 2 | R32: =UPPER(IF($A$2="R",IF(OR(Q32=1,Q32="a"),P30,IF(OR(Q32=2,Q32="b"),P34,"")),IF(OR(Q32=1,Q32="a"),P30,IF(OR(Q32=2,Q32="b"),P34,"")))) -> ΑΝΤΩΝΟΠΟΥΛΟΣ
A33: 29 | B33: =22-D33+8 -> 30 | D33: 0 | E33: 0 | F33: =IF(NOT($G33="-"),VLOOKUP($G33,DrawPrep!$A$3:$G$34,2,FALSE),"") -> 0 | G33: =VLOOKUP($B33,Setup!$K$2:$L$33,2,FALSE) -> 25 | H33: =IF($G33>0,VLOOKUP($G33,DrawPrep!$A$3:$G$34,5,FALSE),0) -> 39 | I33: =IF($G33>0,VLOOKUP($G33,DrawPrep!$A$3:$G$34,3,FALSE),0) -> 24115 | J33: =IF($I33>0,VLOOKUP($I33,DrawPrep!$C$3:$G$34,2,FALSE),"bye") -> ΝΤΑΝΤΙΝΗΣ ΑΓΓΕΛΟΣ | K33: ΝΤΑΝΤΙΝΗΣ | L33: =IF($I33>0,VLOOKUP($I33,DrawPrep!$C$3:$G$34,5,FALSE),"") -> Α.Ε.Τ.ΝΙΚΗ ΠΑΤΡΩΝ | M33: 1 | N33: =UPPER(IF($A$2="R",IF(OR(M33=1,M33="a"),I33,IF(OR(M33=2,M33="b"),I34,"")),IF(OR(M33=1,M33="a"),K33,IF(OR(M33=2,M33="b"),K34,"")))) -> ΝΤΑΝΤΙΝΗΣ
A34: 30 | B34: =23-D34+8 -> 31 | C34: 16 | D34: 0 | E34: =IF($B$2>=C34,1,0) -> 0 | F34: =IF(NOT($G34="-"),VLOOKUP($G34,DrawPrep!$A$3:$G$34,2,FALSE),"") -> 0 | G34: =IF($B$2>=C34,"-",VLOOKUP($B34,Setup!$K$2:$L$33,2,FALSE)) -> 9 | H34: =IF(NOT($G34="-"),VLOOKUP($G34,DrawPrep!$A$3:$G$34,5,FALSE),0) -> 60 | I34: =IF(NOT($G34="-"),VLOOKUP($G34,DrawPrep!$A$3:$G$34,3,FALSE),0) -> 25296 | J34: =IF($I34>0,VLOOKUP($I34,DrawPrep!$C$3:$G$34,2,FALSE),"bye") -> ΣΠΑΘΗΣ ΜΑΡΙΝΟΣ | K34: ΣΠΑΘΗΣ | L34: =IF($I34>0,VLOOKUP($I34,DrawPrep!$C$3:$G$34,5,FALSE),"") -> Α.Ο.Α.ΗΛΙΟΥΠΟΛΗΣ | O34: 2 | P34: =UPPER(IF($A$2="R",IF(OR(O34=1,O34="a"),N33,IF(OR(O34=2,O34="b"),N35,"")),IF(OR(O34=1,O34="a"),N33,IF(OR(O34=2,O34="b"),N35,"")))) -> ΑΝΤΩΝΟΠΟΥΛΟΣ
A35: 31 | B35: =24-D35+8 -> 32 | C35: =B36 -> 2 | D35: 0 | E35: =IF($B$2>=C35,1,0) -> 0 | F35: =IF(NOT($G35="-"),VLOOKUP($G35,DrawPrep!$A$3:$G$34,2,FALSE),"") -> 0 | G35: =IF($B$2>=C35,"-",VLOOKUP($B35,Setup!$K$2:$L$33,2,FALSE)) -> 27 | H35: =IF(NOT($G35="-"),VLOOKUP($G35,DrawPrep!$A$3:$G$34,5,FALSE),0) -> 36 | I35: =IF(NOT($G35="-"),VLOOKUP($G35,DrawPrep!$A$3:$G$34,3,FALSE),0) -> 26385 | J35: =IF($I35>0,VLOOKUP($I35,DrawPrep!$C$3:$G$34,2,FALSE),"bye") -> ΒΟΥΛΓΑΡΑΚΗΣ ΕΛΕΥΘΕΡΙΟΣ | K35: ΒΟΥΛΓΑΡΑΚΗΣ | L35: =IF($I35>0,VLOOKUP($I35,DrawPrep!$C$3:$G$34,5,FALSE),"") -> Ο.Α.ΣΟΥΔΑΣ | M35: 2 | N35: =UPPER(IF($A$2="R",IF(OR(M35=1,M35="a"),I35,IF(OR(M35=2,M35="b"),I36,"")),IF(OR(M35=1,M35="a"),K35,IF(OR(M35=2,M35="b"),K36,"")))) -> ΑΝΤΩΝΟΠΟΥΛΟΣ
A36: 32 | B36: 2 | D36: 0 | E36: 0 | F36: =IF(NOT($G36="-"),VLOOKUP($G36,DrawPrep!$A$3:$G$34,2,FALSE),"") -> 0 | G36: =VLOOKUP($B36,Setup!$K$2:$L$33,2,FALSE) -> 2 | H36: =IF($G36>0,VLOOKUP($G36,DrawPrep!$A$3:$G$34,5,FALSE),0) -> 180 | I36: =IF($G36>0,VLOOKUP($G36,DrawPrep!$A$3:$G$34,3,FALSE),0) -> 23775 | J36: =IF($I36>0,VLOOKUP($I36,DrawPrep!$C$3:$G$34,2,FALSE),"bye") -> ΑΝΤΩΝΟΠΟΥΛΟΣ ΧΡΗΣΤΟΣ | K36: ΑΝΤΩΝΟΠΟΥΛΟΣ | L36: =IF($I36>0,VLOOKUP($I36,DrawPrep!$C$3:$G$34,5,FALSE),"") -> Ο.Α.ΚΕΡΑΤΣΙΝΙΟΥ
J40: seeded players
J41: ="1. " & IF(Setup!B19>0,LEFT(DrawPrep!D3,FIND(" ",DrawPrep!D3)+1),"") -> 1. ΤΣΙΤΣΙΠΑΣ Σ
J42: ="2. " & IF(Setup!B19>1,LEFT(DrawPrep!D4,FIND(" ",DrawPrep!D4)+1),"") -> 2. ΑΝΤΩΝΟΠΟΥΛΟΣ Χ | R42: επιδιαιτητής
J43: ="3. " & IF(Setup!B19>2,LEFT(DrawPrep!D5,FIND(" ",DrawPrep!D5)+1),"") -> 3. ΛΑΖΑΡΙΔΗΣ Κ | R43: =Setup!B10 -> Ντ.Πατσουράκου
J44: ="4. " & IF(Setup!B19>3,LEFT(DrawPrep!D6,FIND(" ",DrawPrep!D6)+1),"") -> 4. ΤΣΙΡΑΝΙΔΗΣ Ε
J45: ="5. " & IF(Setup!B19>4,LEFT(DrawPrep!D7,FIND(" ",DrawPrep!D7)+1),"") -> 5. ΗΛΙΟΠΟΥΛΟΣ Β
J46: ="6. " & IF(Setup!B19>5,LEFT(DrawPrep!D8,FIND(" ",DrawPrep!D8)+1),"") -> 6. ΚΑΠΙΡΗΣ Σ
J47: ="7. " & IF(Setup!B19>6,LEFT(DrawPrep!D9,FIND(" ",DrawPrep!D9)+1),"") -> 7. ΚΟΝΤΟΠΟΥΛΟΣ Θ
J48: ="8. " & IF(Setup!B19>7,LEFT(DrawPrep!D10,FIND(" ",DrawPrep!D10)+1),"") -> 8. ΑΝΔΡΩΝΗΣ Ι

Sheet PrgPrep
A1: =Setup!B3 & ", " & Setup!B4 & ", " & Setup!B6 & " (" & Setup!B7 & ")" -> Η' ΕΝΩΣΗ, 3ο Ενωσιακό, Αττικός Ήλιος (Α14) | G1: Don't Change this Worksheet !
A2: =CONCATENATE(Setup!B10,", ",Setup!B11) -> Ντ.Πατσουράκου, 6934 306004
A3: Πρόγραμμα αγώνων | E3: =Setup!B8 -> 4
A4: ΩΡΑ | B4: Κτγρ. | C4: Αθλητής-Σύλλογος | E4: Αθλητής-Σύλλογος
A5: Έναρξη | B5: =Setup!$B$7 -> Α14 | C5: =IF(OR(Draw32!J5="bye",Draw32!J5="LWD"),"",CONCATENATE(LEFT(Draw32!J5,FIND(" ",Draw32!J5)+1)," (",Draw32!L5,")")) -> ΤΣΙΤΣΙΠΑΣ Σ (Ο.Α.ΓΛΥΦΑΔΑΣ) | D5: =IF(OR(C5="",E5="")," ","-") -> - | E5: =IF(OR(Draw32!J6="bye",Draw32!J6="LWD"), "", CONCATENATE(LEFT(Draw32!J6,FIND(" ",Draw32!J6)+1)," (",Draw32!L6,")")) -> ΚΟΤΣΑΡΙΝΗΣ Β (Α.Γ.Ο.ΦΙΛΙΠΠΙΑΔΑΣ)
B6: =Setup!$B$7 -> Α14 | C6: =IF(OR(Draw32!J7="bye",Draw32!J7="LWD"),"",CONCATENATE(LEFT(Draw32!J7,FIND(" ",Draw32!J7)+1)," (",Draw32!L7,")")) -> ΚΗΠΟΥΡΟΣ Σ (Ο.Α.ΧΑΝΙΩΝ) | D6: =IF(OR(C6="",E6="")," ","-") -> - | E6: =IF(OR(Draw32!J8="bye",Draw32!J8="LWD"), "", CONCATENATE(LEFT(Draw32!J8,FIND(" ",Draw32!J8)+1)," (",Draw32!L8,")")) -> ΒΛΑΧΟΝΙΚΟΛΟΣ Π (ΡΟΔΙΑΚΟΣ Ο.Α.)
B7: =Setup!$B$7 -> Α14 | C7: =IF(OR(Draw32!J9="bye",Draw32!J9="LWD"),"",CONCATENATE(LEFT(Draw32!J9,FIND(" ",Draw32!J9)+1)," (",Draw32!L9,")")) -> ΒΟΪΝΕΑ Α (Ο.Α.ΒΟΥΛΙΑΓΜΕΝΗΣ ΜΙΚΡΟΙ ΑΣΣΟΙ) | D7: - | E7: =IF(OR(Draw32!J10="bye",Draw32!J10="LWD"), "", CONCATENATE(LEFT(Draw32!J10,FIND(" ",Draw32!J10)+1)," (",Draw32!L10,")")) -> ΚΩΣΤΑΡΑΣ Π (Ο.Α.ΠΕΤΡΟΥΠΟΛΗΣ)
B8: =Setup!$B$7 -> Α14 | C8: =IF(OR(Draw32!J11="bye",Draw32!J11="LWD"),"",CONCATENATE(LEFT(Draw32!J11,FIND(" ",Draw32!J11)+1)," (",Draw32!L11,")")) -> ΒΑΡΔΑΚΗΣ Β (ΑΚΑΔ.ΑΝΤΙΣΦ.ΙΩΑΝΝΙΝΩΝ) | D8: - | E8: =IF(OR(Draw32!J12="bye",Draw32!J12="LWD"), "", CONCATENATE(LEFT(Draw32!J12,FIND(" ",Draw32!J12)+1)," (",Draw32!L12,")")) -> ΑΝΔΡΩΝΗΣ Ι (Ο.Α.ΑΓΙΑΣ ΠΑΡΑΣΚΕΥΗΣ)
B9: =Setup!$B$7 -> Α14 | C9: =IF(OR(Draw32!J13="bye",Draw32!J13="LWD"),"",CONCATENATE(LEFT(Draw32!J13,FIND(" ",Draw32!J13)+1)," (",Draw32!L13,")")) -> ΛΑΖΑΡΙΔΗΣ Κ (Ε.Σ.Ο.ΕΠΙΚΟΥΡΟΣ ΠΟΛΙΧΝΗΣ) | D9: - | E9: =IF(OR(Draw32!J14="bye",Draw32!J14="LWD"), "", CONCATENATE(LEFT(Draw32!J14,FIND(" ",Draw32!J14)+1)," (",Draw32!L14,")")) -> ΠΗΛΙΟΥΝΗΣ Μ (Ο.Α.ΒΟΥΛΙΑΓΜΕΝΗΣ ΜΙΚΡΟΙ ΑΣΣΟΙ)
A10: όχι πριν | B10: =Setup!$B$7 -> Α14 | C10: =IF(OR(Draw32!J15="bye",Draw32!J15="LWD"),"",CONCATENATE(LEFT(Draw32!J15,FIND(" ",Draw32!J15)+1)," (",Draw32!L15,")")) -> ΛΑΜΠΡΟΠΟΥΛΟΣ Ι (Ο.Α.ΒΟΥΛΙΑΓΜΕΝΗΣ ΜΙΚΡΟΙ ΑΣΣΟΙ) | D10: - | E10: =IF(OR(Draw32!J16="bye",Draw32!J16="LWD"), "", CONCATENATE(LEFT(Draw32!J16,FIND(" ",Draw32!J16)+1)," (",Draw32!L16,")")) -> ΚΑΤΣΑΛΗΣ Κ (Α.Σ.Α.ΛΑΡΙΣΑΣ)
B11: =Setup!$B$7 -> Α14 | C11: =IF(OR(Draw32!J17="bye",Draw32!J17="LWD"),"",CONCATENATE(LEFT(Draw32!J17,FIND(" ",Draw32!J17)+1)," (",Draw32!L17,")")) -> ΑΓΙΟΥΣ Γ (ΚΕΡΚΥΡΑΪΚΗ Λ.Τ.) | D11: - | E11: =IF(OR(Draw32!J18="bye",Draw32!J18="LWD"), "", CONCATENATE(LEFT(Draw32!J18,FIND(" ",Draw32!J18)+1)," (",Draw32!L18,")")) -> ΙΩΑΝΝΙΔΗΣ Ν (Α.Ο.Α.ΦΙΛΟΘΕΗΣ)
B12: =Setup!$B$7 -> Α14 | C12: =IF(OR(Draw32!J19="bye",Draw32!J19="LWD"),"",CONCATENATE(LEFT(Draw32!J19,FIND(" ",Draw32!J19)+1)," (",Draw32!L19,")")) -> ΚΙΣΣΑΣ Χ (Α.Ο.ΣΙΚΥΩΝΟΣ ΚΙΑΤΟΥ) | D12: - | E12: =IF(OR(Draw32!J20="bye",Draw32!J20="LWD"), "", CONCATENATE(LEFT(Draw32!J20,FIND(" ",Draw32!J20)+1)," (",Draw32!L20,")")) -> ΗΛΙΟΠΟΥΛΟΣ Β (Α.Ο.Α.ΦΙΛΟΘΕΗΣ)
B13: =Setup!$B$7 -> Α14 | C13: =IF(OR(Draw32!J21="bye",Draw32!J21="LWD"),"",CONCATENATE(LEFT(Draw32!J21,FIND(" ",Draw32!J21)+1)," (",Draw32!L21,")")) -> ΚΑΠΙΡΗΣ Σ (Α.Ο.Α.ΦΙΛΟΘΕΗΣ) | D13: - | E13: =IF(OR(Draw32!J22="bye",Draw32!J22="LWD"), "", CONCATENATE(LEFT(Draw32!J22,FIND(" ",Draw32!J22)+1)," (",Draw32!L22,")")) -> ΣΤΑΥΡΑΚΑΣ Μ (Α.Ο.Α.ΦΙΛΟΘΕΗΣ)
B14: =Setup!$B$7 -> Α14 | C14: =IF(OR(Draw32!J23="bye",Draw32!J23="LWD"),"",CONCATENATE(LEFT(Draw32!J23,FIND(" ",Draw32!J23)+1)," (",Draw32!L23,")")) -> ΚΑΛΑΜΠΑΚΑΣ Α (Α.Σ.Α.ΛΑΡΙΣΑΣ) | D14: - | E14: =IF(OR(Draw32!J24="bye",Draw32!J24="LWD"), "", CONCATENATE(LEFT(Draw32!J24,FIND(" ",Draw32!J24)+1)," (",Draw32!L24,")")) -> ΣΑΚΕΛΛΑΡΙΔΗΣ Μ (Ο.Α.ΑΓΙΑΣ ΠΑΡΑΣΚΕΥΗΣ)
A15: όχι πριν | B15: =Setup!$B$7 -> Α14 | C15: =IF(OR(Draw32!J25="bye",Draw32!J25="LWD"),"",CONCATENATE(LEFT(Draw32!J25,FIND(" ",Draw32!J25)+1)," (",Draw32!L25,")")) -> ΠΑΧΑΚΗΣ Ν (Α.Ο.Α.ΗΛΙΟΥΠΟΛΗΣ) | D15: - | E15: =IF(OR(Draw32!J26="bye",Draw32!J26="LWD"), "", CONCATENATE(LEFT(Draw32!J26,FIND(" ",Draw32!J26)+1)," (",Draw32!L26,")")) -> ΓΕΡΟΥΚΗΣ Β (Ο.Α.ΝΙΚΑΙΑ ΛΑΡΙΣΑΣ)
B16: =Setup!$B$7 -> Α14 | C16: =IF(OR(Draw32!J27="bye",Draw32!J27="LWD"),"",CONCATENATE(LEFT(Draw32!J27,FIND(" ",Draw32!J27)+1)," (",Draw32!L27,")")) -> ΠΙΤΣΙΝΗΣ Δ (Ο.Α.ΧΑΛΚΙΔΑΣ) | D16: - | E16: =IF(OR(Draw32!J28="bye",Draw32!J28="LWD"), "", CONCATENATE(LEFT(Draw32!J28,FIND(" ",Draw32!J28)+1)," (",Draw32!L28,")")) -> ΤΣΙΡΑΝΙΔΗΣ Ε (Ο.Α.ΤΟΥΜΠΑΣ)
B17: =Setup!$B$7 -> Α14 | C17: =IF(OR(Draw32!J29="bye",Draw32!J29="LWD"),"",CONCATENATE(LEFT(Draw32!J29,FIND(" ",Draw32!J29)+1)," (",Draw32!L29,")")) -> ΚΟΝΤΟΠΟΥΛΟΣ Θ (Ο.Α.ΚΟΡΙΝΘΟΥ) | D17: - | E17: =IF(OR(Draw32!J30="bye",Draw32!J30="LWD"), "", CONCATENATE(LEFT(Draw32!J30,FIND(" ",Draw32!J30)+1)," (",Draw32!L30,")")) -> ΤΖΩΡΤΖΟΣ Σ (Α.Ο.Α.ΣΤΑΥΡΟΥΠΟΛΗΣ ΙΦΙΤΟΣ)
B18: =Setup!$B$7 -> Α14 | C18: =IF(OR(Draw32!J31="bye",Draw32!J31="LWD"),"",CONCATENATE(LEFT(Draw32!J31,FIND(" ",Draw32!J31)+1)," (",Draw32!L31,")")) -> ΒΡΑΝΑΣ Θ (Α.Ο.Α.ΦΙΛΟΘΕΗΣ) | D18: - | E18: =IF(OR(Draw32!J32="bye",Draw32!J32="LWD"), "", CONCATENATE(LEFT(Draw32!J32,FIND(" ",Draw32!J32)+1)," (",Draw32!L32,")")) -> ΣΗΜΑΙΟΦΟΡΙΔΗΣ Χ (ΠΕΥΚΗ-Γ.ΚΑΛΟΒΕΛΩΝΗΣ)
B19: =Setup!$B$7 -> Α14 | C19: =IF(OR(Draw32!J33="bye",Draw32!J33="LWD"),"",CONCATENATE(LEFT(Draw32!J33,FIND(" ",Draw32!J33)+1)," (",Draw32!L33,")")) -> ΝΤΑΝΤΙΝΗΣ Α (Α.Ε.Τ.ΝΙΚΗ ΠΑΤΡΩΝ) | D19: - | E19: =IF(OR(Draw32!J34="bye",Draw32!J34="LWD"), "", CONCATENATE(LEFT(Draw32!J34,FIND(" ",Draw32!J34)+1)," (",Draw32!L34,")")) -> ΣΠΑΘΗΣ Μ (Α.Ο.Α.ΗΛΙΟΥΠΟΛΗΣ)
B20: =Setup!$B$7 -> Α14 | C20: =IF(OR(Draw32!J35="bye",Draw32!J35="LWD"),"",CONCATENATE(LEFT(Draw32!J35,FIND(" ",Draw32!J35)+1)," (",Draw32!L35,")")) -> ΒΟΥΛΓΑΡΑΚΗΣ Ε (Ο.Α.ΣΟΥΔΑΣ) | D20: - | E20: =IF(OR(Draw32!J36="bye",Draw32!J36="LWD"), "", CONCATENATE(LEFT(Draw32!J36,FIND(" ",Draw32!J36)+1)," (",Draw32!L36,")")) -> ΑΝΤΩΝΟΠΟΥΛΟΣ Χ (Ο.Α.ΚΕΡΑΤΣΙΝΙΟΥ)
A22: Πρόγραμμα αγώνων | E22: Round 2
A23: ΩΡΑ | B23: Κτγρ. | C23: Αθλητής-Σύλλογος | E23: Αθλητής-Σύλλογος
A24: Έναρξη | B24: =Setup!$B$7 -> Α14 | C24: =IF(Draw32!M5="", "", IF(Draw32!M5=1, CONCATENATE(LEFT(Draw32!J5,FIND(" ",Draw32!J5)+1)," (",Draw32!L5,")"),CONCATENATE(LEFT(Draw32!J6,FIND(" ",Draw32!J6)+1)," (",Draw32!L6,")"))) -> ΤΣΙΤΣΙΠΑΣ Σ (Ο.Α.ΓΛΥΦΑΔΑΣ) | D24: =IF(OR(C24="",E24="")," ","-") -> - | E24: =IF(Draw32!M7="", "", IF(Draw32!M7=1, CONCATENATE(LEFT(Draw32!J7,FIND(" ",Draw32!J7)+1)," (",Draw32!L7,")"),CONCATENATE(LEFT(Draw32!J8,FIND(" ",Draw32!J8)+1)," (",Draw32!L8,")"))) -> ΒΛΑΧΟΝΙΚΟΛΟΣ Π (ΡΟΔΙΑΚΟΣ Ο.Α.)
B25: =Setup!$B$7 -> Α14 | C25: =IF(Draw32!M9="", "", IF(Draw32!M9=1, CONCATENATE(LEFT(Draw32!J9,FIND(" ",Draw32!J9)+1)," (",Draw32!L9,")"),CONCATENATE(LEFT(Draw32!J10,FIND(" ",Draw32!J10)+1)," (",Draw32!L10,")"))) -> ΒΟΪΝΕΑ Α (Ο.Α.ΒΟΥΛΙΑΓΜΕΝΗΣ ΜΙΚΡΟΙ ΑΣΣΟΙ) | D25: - | E25: =IF(Draw32!M11="", "", IF(Draw32!M11=1, CONCATENATE(LEFT(Draw32!J11,FIND(" ",Draw32!J11)+1)," (",Draw32!L11,")"),CONCATENATE(LEFT(Draw32!J12,FIND(" ",Draw32!J12)+1)," (",Draw32!L12,")"))) -> ΑΝΔΡΩΝΗΣ Ι (Ο.Α.ΑΓΙΑΣ ΠΑΡΑΣΚΕΥΗΣ)
B26: =Setup!$B$7 -> Α14 | C26: =IF(Draw32!M13="", "", IF(Draw32!M13=1, CONCATENATE(LEFT(Draw32!J13,FIND(" ",Draw32!J13)+1)," (",Draw32!L13,")"),CONCATENATE(LEFT(Draw32!J14,FIND(" ",Draw32!J14)+1)," (",Draw32!L14,")"))) -> ΛΑΖΑΡΙΔΗΣ Κ (Ε.Σ.Ο.ΕΠΙΚΟΥΡΟΣ ΠΟΛΙΧΝΗΣ) | D26: - | E26: =IF(Draw32!M15="", "", IF(Draw32!M15=1, CONCATENATE(LEFT(Draw32!J15,FIND(" ",Draw32!J15)+1)," (",Draw32!L15,")"),CONCATENATE(LEFT(Draw32!J16,FIND(" ",Draw32!J16)+1)," (",Draw32!L16,")"))) -> ΚΑΤΣΑΛΗΣ Κ (Α.Σ.Α.ΛΑΡΙΣΑΣ)
B27: =Setup!$B$7 -> Α14 | C27: =IF(Draw32!M17="", "", IF(Draw32!M17=1, CONCATENATE(LEFT(Draw32!J17,FIND(" ",Draw32!J17)+1)," (",Draw32!L17,")"),CONCATENATE(LEFT(Draw32!J18,FIND(" ",Draw32!J18)+1)," (",Draw32!L18,")"))) -> ΑΓΙΟΥΣ Γ (ΚΕΡΚΥΡΑΪΚΗ Λ.Τ.) | D27: - | E27: =IF(Draw32!M19="", "", IF(Draw32!M19=1, CONCATENATE(LEFT(Draw32!J19,FIND(" ",Draw32!J19)+1)," (",Draw32!L19,")"),CONCATENATE(LEFT(Draw32!J20,FIND(" ",Draw32!J20)+1)," (",Draw32!L20,")"))) -> ΗΛΙΟΠΟΥΛΟΣ Β (Α.Ο.Α.ΦΙΛΟΘΕΗΣ)
B28: =Setup!$B$7 -> Α14 | C28: =IF(Draw32!M21="", "", IF(Draw32!M21=1, CONCATENATE(LEFT(Draw32!J21,FIND(" ",Draw32!J21)+1)," (",Draw32!L21,")"),CONCATENATE(LEFT(Draw32!J22,FIND(" ",Draw32!J22)+1)," (",Draw32!L22,")"))) -> ΣΤΑΥΡΑΚΑΣ Μ (Α.Ο.Α.ΦΙΛΟΘΕΗΣ) | D28: - | E28: =IF(Draw32!M23="", "", IF(Draw32!M23=1, CONCATENATE(LEFT(Draw32!J23,FIND(" ",Draw32!J23)+1)," (",Draw32!L23,")"),CONCATENATE(LEFT(Draw32!J24,FIND(" ",Draw32!J24)+1)," (",Draw32!L24,")"))) -> ΣΑΚΕΛΛΑΡΙΔΗΣ Μ (Ο.Α.ΑΓΙΑΣ ΠΑΡΑΣΚΕΥΗΣ)
A29: όχι πριν | B29: =Setup!$B$7 -> Α14 | C29: =IF(Draw32!M25="", "", IF(Draw32!M25=1, CONCATENATE(LEFT(Draw32!J25,FIND(" ",Draw32!J25)+1)," (",Draw32!L25,")"),CONCATENATE(LEFT(Draw32!J26,FIND(" ",Draw32!J26)+1)," (",Draw32!L26,")"))) -> ΠΑΧΑΚΗΣ Ν (Α.Ο.Α.ΗΛΙΟΥΠΟΛΗΣ) | D29: - | E29: =IF(Draw32!M27="", "", IF(Draw32!M27=1, CONCATENATE(LEFT(Draw32!J27,FIND(" ",Draw32!J27)+1)," (",Draw32!L27,")"),CONCATENATE(LEFT(Draw32!J28,FIND(" ",Draw32!J28)+1)," (",Draw32!L28,")"))) -> ΤΣΙΡΑΝΙΔΗΣ Ε (Ο.Α.ΤΟΥΜΠΑΣ)
B30: =Setup!$B$7 -> Α14 | C30: =IF(Draw32!M29="", "", IF(Draw32!M29=1, CONCATENATE(LEFT(Draw32!J29,FIND(" ",Draw32!J29)+1)," (",Draw32!L29,")"),CONCATENATE(LEFT(Draw32!J30,FIND(" ",Draw32!J30)+1)," (",Draw32!L30,")"))) -> ΚΟΝΤΟΠΟΥΛΟΣ Θ (Ο.Α.ΚΟΡΙΝΘΟΥ) | D30: - | E30: =IF(Draw32!M31="", "", IF(Draw32!M31=1, CONCATENATE(LEFT(Draw32!J31,FIND(" ",Draw32!J31)+1)," (",Draw32!L31,")"),CONCATENATE(LEFT(Draw32!J32,FIND(" ",Draw32!J32)+1)," (",Draw32!L32,")"))) -> ΣΗΜΑΙΟΦΟΡΙΔΗΣ Χ (ΠΕΥΚΗ-Γ.ΚΑΛΟΒΕΛΩΝΗΣ)
B31: =Setup!$B$7 -> Α14 | C31: =IF(Draw32!M33="", "", IF(Draw32!M33=1, CONCATENATE(LEFT(Draw32!J33,FIND(" ",Draw32!J33)+1)," (",Draw32!L33,")"),CONCATENATE(LEFT(Draw32!J34,FIND(" ",Draw32!J34)+1)," (",Draw32!L34,")"))) -> ΝΤΑΝΤΙΝΗΣ Α (Α.Ε.Τ.ΝΙΚΗ ΠΑΤΡΩΝ) | D31: - | E31: =IF(Draw32!M35="", "", IF(Draw32!M35=1, CONCATENATE(LEFT(Draw32!J35,FIND(" ",Draw32!J35)+1)," (",Draw32!L35,")"),CONCATENATE(LEFT(Draw32!J36,FIND(" ",Draw32!J36)+1)," (",Draw32!L36,")"))) -> ΑΝΤΩΝΟΠΟΥΛΟΣ Χ (Ο.Α.ΚΕΡΑΤΣΙΝΙΟΥ)
A37: Don't Change this Worksheet !

Sheet Day1
A1: Η' ΕΝΩΣΗ, 3ο Ενωσιακό, Αττικός Ήλιος (Α14)
A2: Ντ.Πατσουράκου, 6934 306004
A3: Πρόγραμμα αγώνων | E3: 4
A4: ΩΡΑ | B4: Κτγρ. | C4: Αθλητής-Σύλλογος | E4: Αθλητής-Σύλλογος
A5: Έναρξη | B5: Α14 | C5: ΤΣΙΤΣΙΠΑΣ Σ (Ο.Α.ΓΛΥΦΑΔΑΣ) | D5: - | E5: ΚΟΤΣΑΡΙΝΗΣ Β (Α.Γ.Ο.ΦΙΛΙΠΠΙΑΔΑΣ)
B6: Α14 | C6: ΚΗΠΟΥΡΟΣ Σ (Ο.Α.ΧΑΝΙΩΝ) | D6: - | E6: ΒΛΑΧΟΝΙΚΟΛΟΣ Π (ΡΟΔΙΑΚΟΣ Ο.Α.)
B7: Α14 | C7: ΒΟΪΝΕΑ Α (Ο.Α.ΒΟΥΛΙΑΓΜΕΝΗΣ ΜΙΚΡΟΙ ΑΣΣΟΙ) | D7: - | E7: ΚΩΣΤΑΡΑΣ Π (Ο.Α.ΠΕΤΡΟΥΠΟΛΗΣ)
B8: Α14 | C8: ΒΑΡΔΑΚΗΣ Β (ΑΚΑΔ.ΑΝΤΙΣΦ.ΙΩΑΝΝΙΝΩΝ) | D8: - | E8: ΑΝΔΡΩΝΗΣ Ι (Ο.Α.ΑΓΙΑΣ ΠΑΡΑΣΚΕΥΗΣ)
B9: Α14 | C9: ΛΑΖΑΡΙΔΗΣ Κ (Ε.Σ.Ο.ΕΠΙΚΟΥΡΟΣ ΠΟΛΙΧΝΗΣ) | D9: - | E9: ΠΗΛΙΟΥΝΗΣ Μ (Ο.Α.ΒΟΥΛΙΑΓΜΕΝΗΣ ΜΙΚΡΟΙ ΑΣΣΟΙ)
A10: όχι πριν | B10: Α14 | C10: ΛΑΜΠΡΟΠΟΥΛΟΣ Ι (Ο.Α.ΒΟΥΛΙΑΓΜΕΝΗΣ ΜΙΚΡΟΙ ΑΣΣΟΙ) | D10: - | E10: ΚΑΤΣΑΛΗΣ Κ (Α.Σ.Α.ΛΑΡΙΣΑΣ)
B11: Α14 | C11: ΑΓΙΟΥΣ Γ (ΚΕΡΚΥΡΑΪΚΗ Λ.Τ.) | D11: - | E11: ΙΩΑΝΝΙΔΗΣ Ν (Α.Ο.Α.ΦΙΛΟΘΕΗΣ)
B12: Α14 | C12: ΚΙΣΣΑΣ Χ (Α.Ο.ΣΙΚΥΩΝΟΣ ΚΙΑΤΟΥ) | D12: - | E12: ΗΛΙΟΠΟΥΛΟΣ Β (Α.Ο.Α.ΦΙΛΟΘΕΗΣ)
B13: Α14 | C13: ΚΑΠΙΡΗΣ Σ (Α.Ο.Α.ΦΙΛΟΘΕΗΣ) | D13: - | E13: ΣΤΑΥΡΑΚΑΣ Μ (Α.Ο.Α.ΦΙΛΟΘΕΗΣ)
B14: Α14 | C14: ΚΑΛΑΜΠΑΚΑΣ Α (Α.Σ.Α.ΛΑΡΙΣΑΣ) | D14: - | E14: ΣΑΚΕΛΛΑΡΙΔΗΣ Μ (Ο.Α.ΑΓΙΑΣ ΠΑΡΑΣΚΕΥΗΣ)
A15: όχι πριν | B15: Α14 | C15: ΠΑΧΑΚΗΣ Ν (Α.Ο.Α.ΗΛΙΟΥΠΟΛΗΣ) | D15: - | E15: ΓΕΡΟΥΚΗΣ Β (Ο.Α.ΝΙΚΑΙΑ ΛΑΡΙΣΑΣ)
B16: Α14 | C16: ΠΙΤΣΙΝΗΣ Δ (Ο.Α.ΧΑΛΚΙΔΑΣ) | D16: - | E16: ΤΣΙΡΑΝΙΔΗΣ Ε (Ο.Α.ΤΟΥΜΠΑΣ)
B17: Α14 | C17: ΚΟΝΤΟΠΟΥΛΟΣ Θ (Ο.Α.ΚΟΡΙΝΘΟΥ) | D17: - | E17: ΤΖΩΡΤΖΟΣ Σ (Α.Ο.Α.ΣΤΑΥΡΟΥΠΟΛΗΣ ΙΦΙΤΟΣ)
B18: Α14 | C18: ΒΡΑΝΑΣ Θ (Α.Ο.Α.ΦΙΛΟΘΕΗΣ) | D18: - | E18: ΣΗΜΑΙΟΦΟΡΙΔΗΣ Χ (ΠΕΥΚΗ-Γ.ΚΑΛΟΒΕΛΩΝΗΣ)
B19: Α14 | C19: ΝΤΑΝΤΙΝΗΣ Α (Α.Ε.Τ.ΝΙΚΗ ΠΑΤΡΩΝ) | D19: - | E19: ΣΠΑΘΗΣ Μ (Α.Ο.Α.ΗΛΙΟΥΠΟΛΗΣ)
B20: Α14 | C20: ΒΟΥΛΓΑΡΑΚΗΣ Ε (Ο.Α.ΣΟΥΔΑΣ) | D20: - | E20: ΑΝΤΩΝΟΠΟΥΛΟΣ Χ (Ο.Α.ΚΕΡΑΤΣΙΝΙΟΥ)

Sheet Day2
A1: Η' ΕΝΩΣΗ, 3ο Ενωσιακό, Αττικός Ήλιος (Α14)
A2: Ντ.Πατσουράκου, 6934 306004
A3: Πρόγραμμα αγώνων | E3: Round 2
A4: ΩΡΑ | B4: Κτγρ. | C4: Αθλητής-Σύλλογος | E4: Αθλητής-Σύλλογος
A5: Έναρξη | B5: Α14 | C5: ΤΣΙΤΣΙΠΑΣ Σ (Ο.Α.ΓΛΥΦΑΔΑΣ) | D5: - | E5: ΒΛΑΧΟΝΙΚΟΛΟΣ Π (ΡΟΔΙΑΚΟΣ Ο.Α.)
B6: Α14 | C6: ΒΟΪΝΕΑ Α (Ο.Α.ΒΟΥΛΙΑΓΜΕΝΗΣ ΜΙΚΡΟΙ ΑΣΣΟΙ) | D6: - | E6: ΑΝΔΡΩΝΗΣ Ι (Ο.Α.ΑΓΙΑΣ ΠΑΡΑΣΚΕΥΗΣ)
B7: Α14 | C7: ΛΑΖΑΡΙΔΗΣ Κ (Ε.Σ.Ο.ΕΠΙΚΟΥΡΟΣ ΠΟΛΙΧΝΗΣ) | D7: - | E7: ΚΑΤΣΑΛΗΣ Κ (Α.Σ.Α.ΛΑΡΙΣΑΣ)
B8: Α14 | C8: ΑΓΙΟΥΣ Γ (ΚΕΡΚΥΡΑΪΚΗ Λ.Τ.) | D8: - | E8: ΗΛΙΟΠΟΥΛΟΣ Β (Α.Ο.Α.ΦΙΛΟΘΕΗΣ)
B9: Α14 | C9: ΣΤΑΥΡΑΚΑΣ Μ (Α.Ο.Α.ΦΙΛΟΘΕΗΣ) | D9: - | E9: ΣΑΚΕΛΛΑΡΙΔΗΣ Μ (Ο.Α.ΑΓΙΑΣ ΠΑΡΑΣΚΕΥΗΣ)
A10: όχι πριν | B10: Α14 | C10: ΠΑΧΑΚΗΣ Ν (Α.Ο.Α.ΗΛΙΟΥΠΟΛΗΣ) | D10: - | E10: ΤΣΙΡΑΝΙΔΗΣ Ε (Ο.Α.ΤΟΥΜΠΑΣ)
B11: Α14 | C11: ΚΟΝΤΟΠΟΥΛΟΣ Θ (Ο.Α.ΚΟΡΙΝΘΟΥ) | D11: - | E11: ΣΗΜΑΙΟΦΟΡΙΔΗΣ Χ (ΠΕΥΚΗ-Γ.ΚΑΛΟΒΕΛΩΝΗΣ)
B12: Α14 | C12: ΝΤΑΝΤΙΝΗΣ Α (Α.Ε.Τ.ΝΙΚΗ ΠΑΤΡΩΝ) | D12: - | E12: ΑΝΤΩΝΟΠΟΥΛΟΣ Χ (Ο.Α.ΚΕΡΑΤΣΙΝΙΟΥ)

Sheet MyProgram
A1: Η' ΕΝΩΣΗ, 3ο Ενωσιακό, Αττικός Ήλιος (Α14)
A2: Ντ.Πατσουράκου, 6934 306004
A3: Πρόγραμμα αγώνων | E3: Round 3
A4: ΩΡΑ | B4: Κτγρ. | C4: Αθλητής-Σύλλογος | E4: Αθλητής-Σύλλογος
A5: Έναρξη
A10: όχι πριν
A15: όχι πριν

Sheet DrawPoints
A2: 17-32 | B2: 9-16 | C2: 5-8 | D2: 3-4 | E2: 2 | F2: 1
A3: 1 | B3: 3 | C3: 7 | D3: 10 | E3: 15 | F3: 20
A4: 1 | B4: 2 | C4: 4 | D4: 3 | E4: 5 | F4: 5

Sheet tmp
A1: α/α | B1: seed | C1: ByeOrder | E1: RndIndx | F1: random | G1: FixRandom
A2: 1 | B2: 1 | E2: 1 | F2: =RAND()/22 -> 0.005860079743 | G2: 0.01621528915
A3: 2 | C3: 1 | E3: 2 | F3: =RAND()/22 -> 0.009729849623 | G3: 0.02905444651
A4: 3 | E4: 3 | F4: 0.01691415239 | G4: 0.0259132432
A5: 4 | C5: 15 | E5: 4 | F5: 0.008388310368 | G5: 0.03871292944
A6: 5 | E6: 5 | F6: 0.0156899301 | G6: 0.02321776956
A7: 6 | C7: 9 | E7: 6 | F7: 0.04141184989 | G7: 0.03114842208
A8: 7 | C8: 5 | E8: 7 | F8: 0.01012522496 | G8: 0.04489467839
A9: 8 | B9: 5 | E9: 8 | F9: 0.008521780439 | G9: 0.01850287226
A10: 9 | B10: 3 | E10: 9 | F10: 0.01019650487 | G10: 0.03785630397
A11: 10 | C11: 3 | E11: 10 | F11: 0.03032795395 | G11: 0.01035162305
A12: 11 | E12: 11 | F12: 0.0139784607 | G12: 0.005971105845
A13: 12 | C13: 13 | E13: 12 | F13: 0.02712177111 | G13: 0.01339559575
A14: 13 | E14: 13 | F14: 0.01700327194 | G14: 0.01750654104
A15: 14 | C15: 11 | E15: 14 | F15: 0.007935267844 | G15: 0.01971100841
A16: 15 | C16: 7 | E16: 15 | F16: 0.01264460285 | G16: 0.04298785766
A17: 16 | B17: 6 | E17: 16 | F17: 0.02681355011 | G17: 0.03312836148
A18: 17 | B18: 7 | E18: 17 | F18: 0.001725253075 | G18: 3.639858161e-05
A19: 18 | C19: 6 | E19: 18 | F19: 0.01361582011 | G19: 0.029312704
A20: 19 | E20: 19 | F20: 0.01873739875 | G20: 0.03399400182
A21: 20 | C21: 12 | E21: 20 | F21: 0.03540226833 | G21: 0.02886328886
A22: 21 | E22: 21 | F22: 0.03219274786 | G22: 0.04434816235
A23: 22 | C23: 14 | E23: 22 | F23: 0.04416801825 | G23: 0.006539691077
A24: 23 | C24: 4 | E24: 23 | F24: 0.04169113315 | G24: 0.008751234267
A25: 24 | B25: 4 | E25: 24 | F25: 0.005604440316 | G25: 0.004504163712
A26: 25 | B26: 8 | E26: 25 | F26: 0.0003612060115 | G26: 0.02271747011
A27: 26 | C27: 8 | E27: 26 | F27: 0.01336124988 | G27: 0.02556335364
A28: 27 | E28: 27 | F28: 0.02461512429 | G28: 0.02320909018
A29: 28 | C29: 10 | E29: 28 | F29: 0.0003459090656 | G29: 0.01881905964
A30: 29 | E30: 29 | F30: 0.01184043554 | G30: 0.01149720018
A31: 30 | C31: 16 | E31: 30 | F31: 0.04383592645 | G31: 0.02025410877
A32: 31 | C32: 2 | E32: 31 | F32: 0.002719733655 | G32: 0.02927640745
A33: 32 | B33: 2 | E33: 32 | F33: 0.03447900406 | G33: 0.0369828444

Sheet tmpRankings
A1: ΑΜ | B1: Ονοματεπώνυμο | C1: Γεν. | D1: Σύλλογος | E1: Βαθμ
A2: 25438 | B2: ΤΣΙΤΣΙΠΑΣ ΣΤΕΦΑΝΟΣ | C2: 1998 | D2: Ο.Α.ΓΛΥΦΑΔΑΣ | E2: 190 | G2: =VLOOKUP(c3;tmpRankings!$A$2:$E$251;5;FALSE)
A3: 23775 | B3: ΑΝΤΩΝΟΠΟΥΛΟΣ ΧΡΗΣΤΟΣ | C3: 1998 | D3: Ο.Α.ΚΕΡΑΤΣΙΝΙΟΥ | E3: 180
A4: 25875 | B4: ΛΑΖΑΡΙΔΗΣ ΚΩΝΣΤΑΝΤΙΝΟΣ | C4: 1998 | D4: Ε.Σ.Ο.ΕΠΙΚΟΥΡΟΣ ΠΟΛΙΧΝΗΣ | E4: 160
A5: 24845 | B5: ΗΛΙΟΠΟΥΛΟΣ ΒΑΣΙΛΗΣ | C5: 1998 | D5: Α.Ο.Α.ΦΙΛΟΘΕΗΣ | E5: 140
A6: 23517 | B6: ΤΣΙΡΑΝΙΔΗΣ ΕΥΣΤΑΘΙΟΣ | C6: 1998 | D6: Ο.Α.ΤΟΥΜΠΑΣ | E6: 140
A7: 25297 | B7: ΚΑΠΙΡΗΣ ΣΤΑΜΑΤΗΣ | C7: 1999 | D7: Α.Ο.Α.ΦΙΛΟΘΕΗΣ | E7: 61
A8: 26190 | B8: ΑΝΔΡΩΝΗΣ ΙΩΑΝΝΗΣ | C8: 1999 | D8: Ο.Α.ΑΓΙΑΣ ΠΑΡΑΣΚΕΥΗΣ | E8: 60
A9: 22866 | B9: ΚΟΝΤΟΠΟΥΛΟΣ ΘΕΟΦΑΝΗΣ | C9: 1998 | D9: Ο.Α.ΚΟΡΙΝΘΟΥ | E9: 60
A10: 25296 | B10: ΣΠΑΘΗΣ ΜΑΡΙΝΟΣ | C10: 1998 | D10: Α.Ο.Α.ΗΛΙΟΥΠΟΛΗΣ | E10: 60
A11: 24516 | B11: ΒΟΪΝΕΑ ΑΛΕΞΑΝΔΡΟΣ | C11: 1998 | D11: Ο.Α.ΒΟΥΛΙΑΓΜΕΝΗΣ ΜΙΚΡΟΙ ΑΣΣΟΙ | E11: 58
A12: 26317 | B12: ΚΩΣΤΑΡΑΣ ΠΑΝΑΓΙΩΤΗΣ | C12: 1999 | D12: Ο.Α.ΠΕΤΡΟΥΠΟΛΗΣ | E12: 58
A13: 26297 | B13: ΑΓΙΟΥΣ ΓΕΩΡΓΙΟΣ | C13: 1999 | D13: ΚΕΡΚΥΡΑΪΚΗ Λ.Τ. | E13: 56
A14: 23040 | B14: ΚΑΤΣΑΛΗΣ ΚΩΝΣΤΑΝΤΙΝΟΣ | C14: 1998 | D14: Α.Σ.Α.ΛΑΡΙΣΑΣ | E14: 55
A15: 30054 | B15: ΣΑΚΕΛΛΑΡΙΔΗΣ ΜΙΧΑΛΗΣ | C15: 2001 | D15: Ο.Α.ΑΓΙΑΣ ΠΑΡΑΣΚΕΥΗΣ | E15: 53
A16: 28396 | B16: ΛΑΜΠΡΟΠΟΥΛΟΣ ΙΟΒΑΝ-ΑΛΕΞΑΝΤΕΡ | C16: 2000 | D16: Ο.Α.ΒΟΥΛΙΑΓΜΕΝΗΣ ΜΙΚΡΟΙ ΑΣΣΟΙ | E16: 49
A17: 30186 | B17: ΠΙΤΣΙΝΗΣ ΔΗΜΗΤΡΙΟΣ | C17: 1999 | D17: Ο.Α.ΧΑΛΚΙΔΑΣ | E17: 48
A18: 26389 | B18: ΒΑΡΔΑΚΗΣ ΒΑΣΙΛΕΙΟΣ | C18: 1999 | D18: ΑΚΑΔ.ΑΝΤΙΣΦ.ΙΩΑΝΝΙΝΩΝ | E18: 46
A19: 24511 | B19: ΙΩΑΝΝΙΔΗΣ ΝΙΚΟΛΑΟΣ | C19: 1998 | D19: Α.Ο.Α.ΦΙΛΟΘΕΗΣ | E19: 46
A20: 26478 | B20: ΚΗΠΟΥΡΟΣ ΣΤΑΥΡΟΣ | C20: 1998 | D20: Ο.Α.ΧΑΝΙΩΝ | E20: 46
A21: 27180 | B21: ΣΤΑΥΡΑΚΑΣ ΜΙΝΩΣ-ΚΙΜΩΝ | C21: 1998 | D21: Α.Ο.Α.ΦΙΛΟΘΕΗΣ | E21: 43
A22: 26914 | B22: ΒΡΑΝΑΣ ΘΕΜΗΣ | C22: 1998 | D22: Α.Ο.Α.ΦΙΛΟΘΕΗΣ | E22: 41
A23: 28144 | B23: ΚΑΛΑΜΠΑΚΑΣ ΑΝΑΣΤΑΣΙΟΣ | C23: 1998 | D23: Α.Σ.Α.ΛΑΡΙΣΑΣ | E23: 41
A24: 27583 | B24: ΠΑΧΑΚΗΣ ΝΙΚΟΛΑΟΣ-ΑΝΔΡΕΑΣ | C24: 1999 | D24: Α.Ο.Α.ΗΛΙΟΥΠΟΛΗΣ | E24: 41
A25: 28285 | B25: ΠΗΛΙΟΥΝΗΣ ΜΙΧΑΗΛ | C25: 1999 | D25: Ο.Α.ΒΟΥΛΙΑΓΜΕΝΗΣ ΜΙΚΡΟΙ ΑΣΣΟΙ | E25: 41
A26: 24115 | B26: ΝΤΑΝΤΙΝΗΣ ΑΓΓΕΛΟΣ | C26: 1999 | D26: Α.Ε.Τ.ΝΙΚΗ ΠΑΤΡΩΝ | E26: 39
A27: 29274 | B27: ΣΗΜΑΙΟΦΟΡΙΔΗΣ ΧΑΡΑΛΑΜΠΟΣ | C27: 1999 | D27: ΠΕΥΚΗ-Γ.ΚΑΛΟΒΕΛΩΝΗΣ | E27: 38
A28: 26385 | B28: ΒΟΥΛΓΑΡΑΚΗΣ ΕΛΕΥΘΕΡΙΟΣ | C28: 1998 | D28: Ο.Α.ΣΟΥΔΑΣ | E28: 36
A29: 22876 | B29: ΓΕΡΟΥΚΗΣ ΒΑΣΙΛΕΙΟΣ | C29: 1998 | D29: Ο.Α.ΝΙΚΑΙΑ ΛΑΡΙΣΑΣ | E29: 34
A30: 27398 | B30: ΚΟΤΣΑΡΙΝΗΣ ΒΑΣΙΛΕΙΟΣ | C30: 1999 | D30: Α.Γ.Ο.ΦΙΛΙΠΠΙΑΔΑΣ | E30: 31.8
A31: 27874 | B31: ΒΛΑΧΟΝΙΚΟΛΟΣ ΠΑΝΑΓΙΩΤΗΣ | C31: 1998 | D31: ΡΟΔΙΑΚΟΣ Ο.Α. | E31: 31
A32: 22656 | B32: ΤΖΩΡΤΖΟΣ ΣΤΑΥΡΟΣ | C32: 1999 | D32: Α.Ο.Α.ΣΤΑΥΡΟΥΠΟΛΗΣ ΙΦΙΤΟΣ | E32: 31
A33: 27879 | B33: ΚΙΣΣΑΣ ΧΡΗΣΤΟΣ-ΕΥΑΓΓΕΛΟΣ | C33: 1998 | D33: Α.Ο.ΣΙΚΥΩΝΟΣ ΚΙΑΤΟΥ | E33: 29
A34: 28357 | B34: ΕΞΙΖΙΔΗΣ-ΜΑΓΙΕΡ ΤΕΪΛΟΡ | C34: 1999 | D34: Ο.Α.ΑΛΕΞΑΝΔΡΟΣ ΒΕΡΟΙΑΣ | E34: 27
A35: 26191 | B35: ΚΑΖΑΝΑΣ ΙΩΑΝΝΗΣ | C35: 1999 | D35: Ο.Α.ΓΛΥΦΑΔΑΣ | E35: 27
A36: 29651 | B36: ΝΙΚΟΛΑΚΑΚΗΣ ΙΩΑΝΝΗΣ | C36: 1998 | D36: ΗΡΑΚΛΕΙΟ Ο.Α.& Α. | E36: 26
A37: 26859 | B37: ΣΙΟΝΤΗΣ ΒΑΣΙΛΕΙΟΣ | C37: 1999 | D37: ΑΚΑΔ.ΑΝΤΙΣΦ.ΙΩΑΝΝΙΝΩΝ | E37: 26
A38: 23091 | B38: ΝΙΚΟΛΟΥΛΗΣ ΚΩΝΣΤΑΝΤΙΝΟΣ | C38: 1998 | D38: Ο.Α.ΝΙΚΑΙΑ ΛΑΡΙΣΑΣ | E38: 24
A39: 26836 | B39: ΦΟΥΖΑΣ ΑΝΑΣΤΑΣΙΟΣ | C39: 1999 | D39: Α.Ο.ΣΙΚΥΩΝΟΣ ΚΙΑΤΟΥ | E39: 23.5
A40: 24506 | B40: ΖΙΩΓΑΣ ΑΛΕΞΑΝΔΡΟΣ | C40: 1998 | D40: Ο.Α.ΑΡΤΑΣ | E40: 23
A41: 26459 | B41: ΝΑΟΥΜ ΣΠΥΡΙΔΩΝ | C41: 1999 | D41: Ο.Α.ΧΑΝΙΩΝ | E41: 19.5
A42: 29817 | B42: ΝΙΑΡΧΟΣ ΝΙΚΗΤΑΣ | C42: 1999 | D42: Ο.Α.ΑΘΛΗΤΙΚΗ ΠΑΙΔΕΙΑ | E42: 15
A43: 26507 | B43: ΜΑΓΚΛΑΡΑΣ ΕΥΑΓΓΕΛΟΣ | C43: 1999 | D43: Α.Γ.Ο.ΦΙΛΙΠΠΙΑΔΑΣ | E43: 14.8
A44: 25238 | B44: ΤΖΕΛΑΤΗΣ ΣΤΕΦΑΝΟΣ | C44: 1998 | D44: Α.Κ.Α.ΜΑΡΑΘΩΝΑ | E44: 14.8
A45: 26075 | B45: ΒΙΝΙΕΡΑΤΟΣ ΕΛΕΥΘΕΡΙΟΣ | C45: 1998 | D45: Ο.Α.ΠΕΤΡΟΥΠΟΛΗΣ | E45: 14.5
A46: 27504 | B46: ΓΙΟΒΑΝΗΣ ΓΕΩΡΓΙΟΣ | C46: 1998 | D46: Α.Ο.Α.ΠΑΤΡΩΝ | E46: 14
A47: 25295 | B47: ΣΒΗΓΚΑΣ ΠΑΝΑΓΙΩΤΗΣ | C47: 1998 | D47: Α.Ο.Α.ΗΛΙΟΥΠΟΛΗΣ | E47: 14
A48: 25828 | B48: ΣΧΟΙΝΟΠΛΟΚΑΚΗΣ ΚΩΝΣΤΑΝΤΙΝΟΣ | C48: 1998 | D48: Ο.Α.ΧΑΝΙΩΝ | E48: 14
A49: 29615 | B49: ΚΛΑΔΕΥΤΗΡΑΣ ΦΩΤΗΣ | C49: 1998 | D49: Ο.Α.ΠΕΤΡΟΥΠΟΛΗΣ | E49: 11.8
A50: 25395 | B50: ΧΑΡΙΤΩΝΙΔΗΣ ΧΑΡΙΤΩΝ | C50: 1998 | D50: Α.Ο.ΑΡΓΥΡΟΥΠΟΛΗΣ | E50: 10.5
A51: 24168 | B51: ΜΙΧΑΗΛΟΣ ΣΤΕΦΑΝΟΣ | C51: 1998 | D51: ΗΡΑΚΛΕΙΟ Ο.Α.& Α. | E51: 4
A52: 26457 | B52: ΑΡΕΤΑΚΗΣ ΙΩΑΝΝΗΣ | C52: 1999 | D52: Ο.Α.ΧΑΝΙΩΝ | E52: 3
A53: 28337 | B53: ΚΑΪΜΑΡΑΣ ΧΡΗΣΤΟΣ | C53: 1999 | D53: Α.Κ.Α.ΜΑΡΑΘΩΝΑ | E53: 3
A54: 30898 | B54: ΜΠΑΝΤΗΛΑΣ ΓΕΩΡΓΙΟΣ | C54: 1999 | D54: ΠΕΥΚΗ-Γ.ΚΑΛΟΒΕΛΩΝΗΣ | E54: 2.8
A55: 26976 | B55: ΜΥΛΩΝΑΣ ΑΠΟΣΤΟΛΟΣ | C55: 1999 | D55: ΠΕΥΚΗ-Γ.ΚΑΛΟΒΕΛΩΝΗΣ | E55: 2.8
A56: 28689 | B56: ΚΑΛΛΙΤΣΗΣ ΚΩΝΣΤΑΝΤΙΝΟΣ | C56: 1999 | D56: Ο.Α.ΠΕΤΡΟΥΠΟΛΗΣ | E56: 2.6
A57: 23093 | B57: ΚΑΛΔΕΡΩΝ ΖΑΚ | C57: 1998 | D57: Ο.Α.ΝΙΚΑΙΑ ΛΑΡΙΣΑΣ | E57: 2.5
A58: 29711 | B58: ΜΠΙΛΛΗΣ ΑΘΑΝΑΣΙΟΣ | C58: 1999 | D58: ΡΟΔΙΑΚΟΣ Ο.Α. | E58: 2.5
A59: 30018 | B59: ΣΠΗΛΙΩΤΟΠΟΥΛΟΣ ΑΓΓΕΛΟΣ | C59: 1999 | D59: Ο.Α.ΠΕΤΡΟΥΠΟΛΗΣ | E59: 2.5
A60: 24340 | B60: ΧΟΝΔΡΟΣ ΙΑΣΩΝ-ΣΤΥΛΙΑΝΟΣ | C60: 1999 | D60: Ο.Α.ΚΕΡΑΤΣΙΝΙΟΥ | E60: 2.5
A61: 28259 | B61: ΝΙΚΟΛΑΚΟΠΟΥΛΟΣ ΒΑΣΙΛΕΙΟΣ | C61: 1999 | D61: Σ.Α.ΣΕΡΡΩΝ | E61: 24
A62: 25492 | B62: ΜΠΟΥΡΤΖΑΛΑΣ ΗΛΙΑΣ-ΜΑΡΙΟΣ | C62: 1998 | D62: ΦΘΙΩΤΙΚΟΣ Ο.Α. | E62: 2
A63: 25862 | B63: ΓΑΒΡΑΣ ΚΥΡΙΑΚΟΣ | C63: 1998 | D63: Ο.Α.ΑΛΕΞΑΝΔΡΟΣ ΒΕΡΟΙΑΣ | E63: 1.8
A64: 26547 | B64: ΚΟΚΟΤΣΑΚΗΣ ΑΛΚΙΝΟΟΣ | C64: 1999 | D64: Α.Ο.Α.ΗΛΙΟΥΠΟΛΗΣ | E64: 18
A65: 29502 | B65: ΠΑΤΕΡΑΣ ΔΙΑΜΑΝΤΗΣ | C65: 1999 | D65: Ο.Α.ΑΝΑΦΛΥΣΤΟΣ ΣΑΡΩΝΙΔΑΣ | E65: 18
A66: 28013 | B66: ΣΠΕΝΤΖΟΣ ΧΡΗΣΤΟΣ | C66: 1998 | D66: Ο.Α.ΒΡΙΛΗΣΣΙΩΝ | E66: 1.8
A67: 27656 | B67: ΝΑΣΙΟΠΟΥΛΟΣ ΓΕΩΡΓΙΟΣ | C67: 1999 | D67: Α.Ο.Α.ΠΑΠΑΓΟΥ | E67: 1.6
A68: 24107 | B68: ΚΟΥΣΤΕΡΙΔΗΣ ΡΑΦΑΗΛ | C68: 1998 | D68: Ο.Α.ΕΥΟΣΜΟΥ ΘΕΣΣΑΛΟΝΙΚΗΣ | E68: 1.5
A69: 28931 | B69: ΚΟΥΤΣΟΓΙΑΝΝΗΣ ΑΝΔΡΕΑΣ | C69: 1999 | D69: Ο.Α.ΜΑΓΝΗΣΙΑΣ | E69: 1.5
A70: 25408 | B70: ΠΑΠΑΦΙΛΙΠΠΟΥ ΔΑΜΙΑΝΟΣ | C70: 1998 | D70: Ο.Α.ΚΑΣΤΟΡΙΑΣ ΚΕΛΕΤΡΟΝ | E70: 1.5
A71: 25502 | B71: ΣΩΤΗΡΟΠΟΥΛΟΣ ΔΗΜΗΤΡΙΟΣ | C71: 1999 | D71: Ο.Α.ΜΑΓΝΗΣΙΑΣ | E71: 1.5
A72: 26893 | B72: ΤΑΞΙΑΡΧΟΥ ΠΟΛΥΧΡΟΝΙΟΣ | C72: 1999 | D72: ΦΘΙΩΤΙΚΟΣ Ο.Α. | E72: 15
A73: 90116 | B73: ΑΜΜΕΡΜΑΝ ΣΤΕΦΑΝΟΣ | C73: 1998 | D73: Ο.Α.ΑΘΛΗΤΙΚΗ ΠΑΙΔΕΙΑ | E73: 1.3
A74: 26338 | B74: ΚΥΡΙΑΚΑΚΗΣ-ΜΕΣΣΑΡΙΤΑΚΗΣ ΓΕΩΡΓΙΟΣ | C74: 1999 | D74: ΗΡΑΚΛΕΙΟ Ο.Α.& Α. | E74: 13
A75: 27655 | B75: ΜΠΑΓΟΡΔΑΚΗΣ ΟΔΥΣΣΕΑΣ | C75: 1999 | D75: Ο.Α.ΣΗΤΕΙΑΣ | E75: 13
A76: 27013 | B76: ΜΠΕΓΝΗΣ ΧΡΗΣΤΟΣ | C76: 1998 | D76: Ο.Α.ΣΑΛΑΜΙΝΑΣ | E76: 13
A77: 27029 | B77: ΠΑΠΑΓΙΑΝΝΗΣ ΑΝΑΣΤΑΣΙΟΣ | C77: 1998 | D77: Ο.Α.ΣΑΛΑΜΙΝΑΣ | E77: 13
A78: 27668 | B78: ΤΑΜΠΑΚΗΣ ΘΕΟΧΑΡΗΣ | C78: 1999 | D78: Ο.Α.ΚΕΡΑΤΣΙΝΙΟΥ | E78: 13
A79: 26427 | B79: ΦΡΙΣΗΡΑΣ ΣΤΕΦΑΝΟΣ | C79: 1999 | D79: Ο.Α.ΒΡΙΛΗΣΣΙΩΝ | E79: 13
A80: 27383 | B80: ΧΑΤΖΗΣ ΣΤΕΦΑΝΟΣ-ΡΑΦΑΗΛ | C80: 1999 | D80: Α.Ε.ΠΟΡΤΟ ΡΑΦΤΗ | E80: 1.3
A81: 26078 | B81: ΑΛΕΞΑΝΔΡΗΣ ΕΥΣΤΑΘΙΟΣ | C81: 1998 | D81: Α.Ο.Π.ΦΑΛΗΡΟΥ | E81: 1
A82: 32148 | B82: ΓΑΛΑΤΙΑΝΟΣ ΗΛΙΑΣ | C82: 1999 | D82: Α.Ο.ΚΑΛΛΙΤΕΧΝΟΥΠΟΛΗΣ | E82: 1
A83: 28590 | B83: ΓΚΑΛΤΣΙΔΗΣ ΧΡΗΣΤΟΣ | C83: 1999 | D83: Α.Ο.Α.ΣΤΑΥΡΟΥΠΟΛΗΣ ΙΦΙΤΟΣ | E83: 1
A84: 30125 | B84: ΘΕΟΔΩΡΙΔΗΣ ΘΕΟΦΙΛΟΣ | C84: 1998 | D84: Α.Α.ΑΛΜΠΑΤΡΟΣ | E84: 1
A85: 29258 | B85: ΜΠΑΛΤΑΓΙΑΝΝΗΣ ΝΙΚΟΛΑΟΣ | C85: 1999 | D85: Ο.Α.ΝΙΚΑΙΑ ΛΑΡΙΣΑΣ | E85: 1
A86: 25532 | B86: ΝΙΚΟΛΟΠΟΥΛΟΣ ΝΙΚΟΛΑΟΣ | C86: 1998 | D86: Α.Ο.Α.ΠΑΤΡΩΝ | E86: 1
A87: 24780 | B87: ΣΑΡΓΟΣ ΑΛΕΞΑΝΔΡΟΣ | C87: 1998 | D87: ΕΘΝΙΚΟΣ ΠΑΝΟΡΑΜΑΤΟΣ | E87: 1
A88: 28165 | B88: ΣΕΛΙΒΑΝΩΦ ΠΑΥΛΟΣ-ΣΤΕΡΓΙΟΣ | C88: 1998 | D88: Ο.Α.ΘΕΣΣΑΛΟΝΙΚΗΣ | E88: 1
A89: 26800 | B89: ΣΤΟΪΔΗΣ ΝΙΚΟΛΑΟΣ-ΝΙΚΗΦΟΡΟΣ | C89: 1999 | D89: Μ.Γ.Σ.ΑΠΟΛΛΩΝ ΚΑΛΑΜΑΡΙΑΣ | E89: 1
A90: 32359 | B90: ΣΩΜΑΡΑΚΗΣ ΑΡΙΣΤΟΤΕΛΗΣ | C90: 1999 | D90: Α.Σ.ΑΚΑΔΗΜΙΕΣ ΠΡΩΤ/ΤΩΝ | E90: 1
A91: 24329 | B91: ΤΖΙΑΣΤΟΥΔΗΣ ΧΡΗΣΤΟΣ | C91: 1999 | D91: Ο.Α.ΝΙΚΑΙΑ ΛΑΡΙΣΑΣ | E91: 1
A92: 25831 | B92: ΧΑΤΖΟΠΟΥΛΟΣ ΚΩΝΣΤΑΝΤΙΝΟΣ | C92: 1999 | D92: Ο.Α.ΒΟΛΟΥ | E92: 1
A93: 32459 | B93: ΑΓΓΕΛΟΠΟΥΛΟΣ ΙΩΑΝΝΗΣ-ΒΛΑΣΙΟΣ | C93: 1999 | D93: Α.Ο.Π.ΦΑΛΗΡΟΥ | E93: 0.8
A94: 26875 | B94: ΓΕΩΡΓΑΚΟΠΟΥΛΟΣ ΑΡΗΣ | C94: 1999 | D94: Γ.Ο.ΠΕΡΙΣΤΕΡΙΟΥ Γ.ΠΑΛΑΣΚΑΣ | E94: 0.8
A95: 31171 | B95: ΔΗΜΗΤΡΑΚΗΣ ΙΩΑΝΝΗΣ | C95: 1998 | D95: ΡΟΔΙΑΚΗ ΑΚΑΔ.ΑΝΤΙΣΦ. | E95: 8
A96: 27236 | B96: ΚΑΤΣΑΓΚΟΛΗΣ ΑΣΤΕΡΙΟΣ | C96: 1998 | D96: Γ.Σ.ΛΙΒΥΚΟΣ ΙΕΡΑΠΕΤΡΑΣ | E96: 8
A97: 30944 | B97: ΚΟΝΤΟΓΙΩΡΓΑΚΗΣ ΙΩΑΝΝΗΣ | C97: 1999 | D97: Ο.Α.ΣΗΤΕΙΑΣ | E97: 8
A98: 29577 | B98: ΚΟΣΜΑΣ ΑΡΙΣΤΕΙΔΗΣ | C98: 1998 | D98: ΕΘΝΙΚΟΣ ΠΑΝΟΡΑΜΑΤΟΣ | E98: 8
A99: 30064 | B99: ΚΟΥΚΟΥΛΙΘΡΑΣ ΙΩΑΝΝΗΣ | C99: 1999 | D99: Ο.Α.ΧΑΛΚΙΔΑΣ | E99: 8
A100: 26345 | B100: ΚΟΥΡΔΟΓΛΟΥ ΓΕΩΡΓΙΟΣ | C100: 1998 | D100: Μ.Α.Σ.ΑΕΤΟΣ ΘΕΣΣΑΛΟΝΙΚΗΣ | E100: 8
A101: 24567 | B101: ΛΕΩΝΙΔΗΣ ΠΑΤΡΙΚ | C101: 1998 | D101: Ο.Α.ΑΝΑΦΛΥΣΤΟΣ ΣΑΡΩΝΙΔΑΣ | E101: 0.8
A102: 26230 | B102: ΜΑΝΟΥΣΑΚΗΣ ΚΥΡΙΑΚΟΣ | C102: 1999 | D102: ΗΡΑΚΛΕΙΟ Ο.Α.& Α. | E102: 8
A103: 24772 | B103: ΜΑΡΚΟΓΙΑΝΝΑΚΗΣ ΚΩΝΣΤΑΝΤΙΝΟΣ | C103: 1998 | D103: Ο.Α.ΡΕΘΥΜΝΟΥ | E103: 8
A104: 30895 | B104: ΜΑΡΝΕΛΛΟΣ ΙΩΣΗΦ | C104: 1999 | D104: Α.Ο.ΛΑΤΩ ΑΓ.ΝΙΚΟΛΑΟΥ | E104: 8
A105: 24301 | B105: ΜΠΑΛΤΖΟΓΛΟΥ ΚΩΝΣΤΑΝΤΙΝΟΣ | C105: 1998 | D105: Ο.Α.ΚΟΡΙΝΘΟΥ | E105: 0.8
A106: 90060 | B106: ΜΠΙΟΡΑΤΣ ΜΠΟΡΚΟ | C106: 1999 | D106: Ο.Α.ΡΕΘΥΜΝΟΥ | E106: 8
A107: 28024 | B107: ΜΥΛΩΝΟΠΟΥΛΟΣ ΟΕΟΔΩΡΟΣ | C107: 1999 | D107: ΦΙΛΑΘΛ.ΟΜΙΛΟΣ ΠΥΡΓΟΥ | E107: 0.8
A108: 30185 | B108: ΝΕΡΟΥΤΣΟΣ ΔΗΜΗΤΡΙΟΣ | C108: 1999 | D108: Ο.Α.ΧΑΛΚΙΔΑΣ | E108: 8
A109: 27875 | B109: ΠΑΡΙΣΣΗΣ ΕΥΑΓΓΕΛΟΣ | C109: 1999 | D109: ΡΟΔΙΑΚΟΣ Ο.Α. | E109: 8
A110: 30187 | B110: ΡΟΥΣΟΠΟΥΛΟΣ ΙΩΑΝΝΗΣ | C110: 1998 | D110: Ο.Α.ΧΑΛΚΙΔΑΣ | E110: 0.8
A111: 29664 | B111: ΣΑΧΠΑΤΖΙΔΗΣ ΓΕΩΡΓΙΟΣ | C111: 1998 | D111: Ο.Α.ΝΕΣΤΩΡΑΣ ΓΙΑΝΝΙΤΣΩΝ | E111: 8
A112: 24501 | B112: ΣΠΥΡΟΣ ΓΕΩΡΓΙΟΣ | C112: 1998 | D112: Ο.Α.ΑΡΤΑΣ | E112: 8
A113: 26172 | B113: ΣΤΑΥΡΟΥΛΑΚΗΣ ΓΕΩΡΓΙΟΣ | C113: 1999 | D113: ΗΡΑΚΛΕΙΟ Ο.Α.& Α. | E113: 8
A114: 30398 | B114: ΤΣΕΚΟΥΡΑΣ ΚΩΝΣΤΑΝΤΙΝΟΣ | C114: 1999 | D114: Ο.Α.ΧΑΛΚΙΔΑΣ | E114: 8
A115: 28192 | B115: ΑΛΕΞΑΝΔΡΙΔΗΣ ΧΑΡΑΛΑΜΠΟΣ | C115: 1999 | D115: Σ.Α.ΣΕΡΡΩΝ | E115: 5
A116: 26897 | B116: ΑΝΑΣΤΑΣΙΟΥ ΚΩΝΣΤΑΝΤΙΝΟΣ | C116: 1999 | D116: ΦΘΙΩΤΙΚΟΣ Ο.Α. | E116: 5
A117: 31250 | B117: ΒΙΛΔΙΡΙΔΗΣ ΝΙΚΗΤΑΣ | C117: 1998 | D117: Ο.Α.ΤΟΥΜΠΑΣ | E117: 5
A118: 31249 | B118: ΒΙΛΔΙΡΙΔΗΣ ΙΩΑΝΝΗΣ | C118: 1999 | D118: Ο.Α.ΤΟΥΜΠΑΣ | E118: 5
A119: 32318 | B119: ΓΕΡΑΡΔΗΣ ΕΜΜΑΝΟΥΗΛ | C119: 1998 | D119: Ο.Α.ΠΕΤΡΟΥΠΟΛΗΣ | E119: 5
A120: 29542 | B120: ΓΕΩΡΓΙΟΥ ΑΛΕΞΑΝΔΡΟΣ | C120: 1998 | D120: Ο.Α.ΣΟΦΑΔΩΝ ΚΑΡΔΙΤΣΑΣ | E120: 5
A121: 90097 | B121: ΓΚΡΑΤΣΙΟΖΙ ΜΑΞΙΜ | C121: 1999 | D121: Ο.Α.ΤΟΥΜΠΑΣ | E121: 5
A122: 27171 | B122: ΓΡΗΓΟΡΑΤΟΣ ΧΑΡΑΛΑΜΠΟΣ | C122: 1998 | D122: Α.Ο.Α.ΗΛΙΟΥΠΟΛΗΣ | E122: 5
A123: 32795 | B123: ΔΕΛΗΜΠΑΛΤΑΣ ΟΕΟΔΩΡΟΣ | C123: 1998 | D123: Α.Ο.ΑΤΡΟΜΗΤΟΣ ΤΡΙΑΔΙΟΥ | E123: 5
A124: 32294 | B124: ΔΡΙΒΑΣ ΧΑΡΑΛΑΜΠΟΣ | C124: 1999 | D124: Α.Ο.ΚΑΛΛΙΤΕΧΝΟΥΠΟΛΗΣ | E124: 5
A125: 26505 | B125: ΖΑΝΙΚΑΣ ΠΑΥΛΟΣ | C125: 1999 | D125: Α.Γ.Ο.ΦΙΛΙΠΠΙΑΔΑΣ | E125: 5
A126: 25119 | B126: ΘΕΟΛΟΓΗΣ ΔΗΜΗΤΡΙΟΣ | C126: 1998 | D126: Ο.Α.ΣΟΦΑΔΩΝ ΚΑΡΔΙΤΣΑΣ | E126: 5
A127: 27939 | B127: ΚΑΡΑΚΑΤΣΑΝΗΣ ΑΛΕΞΑΝΔΡΟΣ-ΙΩΑΝΝΗΣ | C127: 1998 | D127: Α.Ο.Α.ΗΛΙΟΥΠΟΛΗΣ | E127: 5
A128: 28512 | B128: ΚΑΡΑΜΗΤΡΟΥΣΗΣ ΑΝΤΩΝΙΟΣ | C128: 1999 | D128: Α.Ο.Α.ΠΟΣΕΙΔΩΝ ΘΕΣΣΑΛΟΝΙΚΗΣ | E128: 5
A129: 31863 | B129: ΚΑΡΑΜΠΑΣΗΣ ΒΑΣΙΛΕΙΟΣ | C129: 1998 | D129: Μ.Γ.Σ.ΑΠΟΛΛΩΝ ΚΑΛΑΜΑΡΙΑΣ | E129: 5
A130: 27785 | B130: ΚΑΡΒΕΛΑΣ ΣΩΤΗΡΗΣ | C130: 1999 | D130: Α.Σ.ΟΛΥΜΠΙΑΚΟΥ ΧΩΡΙΟΥ | E130: 5
A131: 26983 | B131: ΚΑΤΑΠΟΔΗΣ ΔΗΜΗΤΡΗΣ | C131: 1999 | D131: Α.Ο.Α.ΑΤΤΙΚΟΣ ΗΛΙΟΣ | E131: 5
A132: 29450 | B132: ΚΟΖΥΡΑΚΗΣ ΦΩΤΙΟΣ | C132: 1998 | D132: Α.Σ.Ε.ΘΗΣΕΑΣ ΑΓΙΟΥ ΔΗΜΗΤΡΙΟΥ | E132: 5
A133: 24585 | B133: ΚΟΥΡΟΥΠΗΣ ΜΑΡΙΝΟΣ | C133: 1998 | D133: Σ.Α.ΓΑΛΑΤΣΙΟΥ | E133: 5
A134: 32408 | B134: ΚΟΥΤΕΛΙΔΑΣ ΣΤΕΦΑΝΟΣ | C134: 1999 | D134: Ο.Α.ΤΡΙΚΑΛΩΝ | E134: 5
A135: 28243 | B135: ΚΡΑΣΟΥΔΑΚΗΣ ΙΩΑΝΝΗΣ-ΓΕΩΡΓΙΟΣ | C135: 1999 | D135: Ο.Α.ΧΑΝΙΩΝ | E135: 5
A136: 31335 | B136: ΛΑΖΑΡΙΔΗΣ ΓΕΩΡΓΙΟΣ-ΑΛΕΞΑΝΔΡΟΣ | C136: 1999 | D136: Φ.Ο.Α.ΝΕΑΠΟΛΗΣ | E136: 5
A137: 25930 | B137: ΛΑΣΚΑΡΑΤΟΣ ΑΧΙΛΛΕΑΣ | C137: 1998 | D137: Α.Ο.Π.ΦΑΛΗΡΟΥ | E137: 5
A138: 28792 | B138: ΛΟΥΛΑΚΗΣ ΘΕΟΧΑΡΗΣ | C138: 1999 | D138: Α.Ο.Α.ΠΑΠΑΓΟΥ | E138: 5
A139: 24530 | B139: ΜΑΥΡΟΓΑΛΟΣ ΑΝΔΡΕΑΣ | C139: 1998 | D139: ΠΕΥΚΗ-Γ.ΚΑΛΟΒΕΛΩΝΗΣ | E139: 5
A140: 31591 | B140: ΜΠΑΡΤΖΟΣ-ΝΑΖΙΡΗΣ ΑΛΕΞΑΝΔΡΟΣ | C140: 1999 | D140: Α.Ο.ΑΤΡΟΜΗΤΟΣ ΤΡΙΑΔΙΟΥ | E140: 5
A141: 32707 | B141: ΜΠΕΛΛΟΣ ΠΕΤΡΟΣ | C141: 1998 | D141: Ο.Α.ΑΓΙΑΣ ΠΑΡΑΣΚΕΥΗΣ | E141: 5
A142: 28976 | B142: ΝΙΚΟΛΑΪΔΗΣ ΦΟΙΒΟΣ | C142: 1999 | D142: Ο.Α.ΑΝΑΦΛΥΣΤΟΣ ΣΑΡΩΝΙΔΑΣ | E142: 5
A143: 28174 | B143: ΠΑΚΑΣ ΜΑΡΚΟΣ | C143: 1999 | D143: Ο.Α.ΑΓΙΑΣ ΠΑΡΑΣΚΕΥΗΣ | E143: 5
A144: 32387 | B144: ΠΑΝΑΓΙΩΤΑΚΟΠΟΥΛΟΣ ΜΑΡΙΟΣ | C144: 1999 | D144: Σ.Α.ΓΑΛΑΤΣΙΟΥ | E144: 5
A145: 31388 | B145: ΠΑΠΑΓΕΩΡΓΙΟΥ ΓΕΩΡΓΙΟΣ | C145: 1999 | D145: Ο.Α.ΒΟΛΟΥ | E145: 5
A146: 31830 | B146: ΠΑΠΑΪΩΑΝΝΟΥ ΑΝΤΩΝΙΟΣ | C146: 1999 | D146: Α.Ο.ΑΤΡΟΜΗΤΟΣ ΤΡΙΑΔΙΟΥ | E146: 5
A147: 32382 | B147: ΠΕΠΠΑΣ ΓΕΩΡΓΙΟΣ | C147: 1998 | D147: Σ.Α.ΓΑΛΑΤΣΙΟΥ | E147: 5
A148: 24307 | B148: ΠΛΕΣΙΑΣ ΧΡΗΣΤΟΣ | C148: 1998 | D148: Ο.Α.ΘΕΣΣΑΛΟΝΙΚΗΣ | E148: 5
A149: 29607 | B149: ΠΟΥΛΗΣ ΣΤΡΑΤΗΣ | C149: 1998 | D149: Α.Σ.Ε.ΘΗΣΕΑΣ ΑΓΙΟΥ ΔΗΜΗΤΡΙΟΥ | E149: 5
A150: 25046 | B150: ΣΑΡΑΜΑΝΤΙΤΣ ΠΑΥΛΟΣ | C150: 1999 | D150: Ο.Α.ΕΥΟΣΜΟΥ ΘΕΣΣΑΛΟΝΙΚΗΣ | E150: 5
A151: 30560 | B151: ΣΟΦΗΣ ΝΙΚΟΛΑΟΣ | C151: 1999 | D151: Α.Ο.Α.ΠΑΤΡΩΝ | E151: 5
A152: 28981 | B152: ΤΖΑΒΑΡΑΣ ΑΝΔΡΕΑΣ | C152: 1999 | D152: Α.Ο.Α.ΠΑΤΡΩΝ | E152: 5
A153: 22842 | B153: ΤΣΑΡΚΝΙΑΣ ΣΤΕΡΓΙΟΣ | C153: 1999 | D153: Ο.Α.ΑΡΙΔΑΙΑΣ | E153: 5
A154: 23491 | B154: ΤΣΑΡΚΝΙΑΣ ΝΙΚΟΛΑΟΣ | C154: 1998 | D154: Ο.Α.ΑΡΙΔΑΙΑΣ | E154: 5
A155: 28769 | B155: ΤΣΕΡΙΩΤΗΣ ΑΔΩΝΙΣ-ΜΑΡΙΟΣ | C155: 1999 | D155: Ο.Α.ΑΝΑΦΛΥΣΤΟΣ ΣΑΡΩΝΙΔΑΣ | E155: 5
A156: 28467 | B156: ΧΑΤΖΗΝΙΚΟΛΑΟΥ ΝΙΚΟΣ | C156: 1999 | D156: Ο.Α.ΤΟΥΜΠΑΣ | E156: 5
A157: 28468 | B157: ΧΑΤΖΗΝΙΚΟΛΑΟΥ ΕΥΡΙΠΙΔΗΣ | C157: 1999 | D157: Ο.Α.ΤΟΥΜΠΑΣ | E157: 5
A158: 27108 | B158: ΔΕΛΗΣ ΚΩΝΣΤΑΝΤΙΝΟΣ | C158: 1999 | D158: Α.Ε.Κ.ΤΡΙΠΟΛΗΣ | E158: 0
A159: 26837 | B159: ΖΟΥΜΑΣ ΚΩΝΣΤΑΝΤΙΝΟΣ | C159: 1998 | D159: Α.Ο.ΣΙΚΥΩΝΟΣ ΚΙΑΤΟΥ | E159: 0
A160: 24547 | B160: ΜΑΝΕΚΑΣ ΑΘΑΝΑΣΙΟΣ | C160: 1998 | D160: Ο.Α.ΙΩΑΝΝΙΝΩΝ | E160: 0
A161: 31302 | B161: ΜΑΝΤΕΣΗΣ ΜΑΡΙΟΣ | C161: 1999 | D161: Ο.Α.ΠΕΤΡΟΥΠΟΛΗΣ | E161: 0
A162: 28378 | B162: ΜΟΥΣΑΣ ΔΗΜΟΣΘΕΝΗΣ | C162: 1999 | D162: Α.Ο.Α.ΦΙΛΟΘΕΗΣ | E162: 0
A163: 25351 | B163: ΔΙΑΜΑΝΤΟΠΟΥΛΟΣ ΓΙΩΡΓΟΣ | C163: 1998 | D163: Ο.Α.ΑΘΗΝΩΝ | E163: -1
A164: 26726 | B164: ΜΠΟΥΓΑΣ ΠΑΝΑΓΙΩΤΗΣ | C164: 1998 | D164: Α.Ο.ΑΡΓΥΡΟΥΠΟΛΗΣ | E164: -7
A165: 26055 | B165: ΣΙΡΠΟΣ ΑΛΕΞΙΟΣ | C165: 1998 | D165: Ο.Α.ΘΕΣΣΑΛΟΝΙΚΗΣ | E165: -18.5
A166: 24765 | B166: ΛΑΖΑΡΙΔΗΣ ΚΥΡΙΑΚΟΣ | C166: 1998 | D166: Ο.Α.ΘΕΣΣΑΛΟΝΙΚΗΣ | E166: -18.7
A167: 29121 | B167: ΣΑΡΤΖΕΤΑΚΗΣ ΘΕΟΔΩΡΟΣ | C167: 1998 | D167: Α.Π.Ο.ΣΑΝΝΥ ΣΠΟΡΤΣ ΚΛΑΜΠ | E167: -18.7
A168: 30019 | B168: ΒΕΛΕΝΤΖΑΣ ΔΗΜΗΤΡΙΟΣ | C168: 1999 | D168: Ν.Ο.ΘΕΣΣΑΛΟΝΙΚΗΣ | E168: -19
A169: 31693 | B169: ΕΣΚΙΟΓΛΟΥ ΣΤΕΦΑΝΟΣ | C169: 1999 | D169: Α.Π.Ο.ΣΑΝΝΥ ΣΠΟΡΤΣ ΚΛΑΜΠ | E169: -19
A170: 29435 | B170: ΤΖΑΘΑΣ ΝΙΚΟΛΑΟΣ-ΣΩΤΗΡΗΣ | C170: 1999 | D170: Ο.Α.ΚΑΙΣΑΡΙΑΝΗΣ | E170: -19
A171: 28588 | B171: ΑΓΓΕΛΟΠΟΥΛΟΣ ΜΙΛΤΙΑΔΗΣ | C171: 1999 | D171: Α.Ο.Α.ΦΙΛΟΘΕΗΣ | E171: -19.2
A172: 29789 | B172: ΤΣΟΜΛΕΚΤΣΟΓΛΟΥ ΝΙΚΟΛΑΟΣ | C172: 1999 | D172: Α.Ο.Α.ΦΙΛΟΘΕΗΣ | E172: -19.2
A173: 29677 | B173: ΨΑΡΑΥΤΗΣ ΝΙΚΟΛΑΟΣ | C173: 1999 | D173: Σ.Φ.Α.ΜΕΛΙΣΣΙΩΝ Ο ΦΟΙΒΟΣ | E173: -19.2
A174: 30188 | B174: ΜΟΥΤΣΑΤΣΟΣ ΝΙΚΟΛΑΟΣ | C174: 1999 | D174: Ο.Α.ΧΑΛΚΙΔΑΣ | E174: -19.5
A175: 29077 | B175: ΑΛΕΞΑΝΔΡΟΠΟΥΛΟΣ ΣΤΕΦΑΝΟΣ | C175: 1999 | D175: Ο.Α.ΠΕΤΡΟΥΠΟΛΗΣ | E175: -20
A176: 30523 | B176: ΑΠΕΡΓΗΣ ΚΟΜΝΗΝΟΣ | C176: 1999 | D176: Α.Ο.ΚΑΛΛΙΤΕΧΝΟΥΠΟΛΗΣ | E176: -20
A177: 30901 | B177: ΑΠΟΣΤΟΛΟΥ ΑΧΙΛΛΕΑΣ | C177: 1998 | D177: Γ.Σ.ΕΛΕΥΘΕΡΙΟΥ ΚΟΡΔ.ΑΡΓΟΝΑΥΤΕΣ | E177: -20
A178: 29451 | B178: ΑΡΓΥΡΟΥΛΗΣ ΑΝΤΩΝΙΟΣ | C178: 1998 | D178: Α.Σ.Ε.ΘΗΣΕΑΣ ΑΓΙΟΥ ΔΗΜΗΤΡΙΟΥ | E178: -20
A179: 29931 | B179: ΒΑΣΙΛΑΚΟΠΟΥΛΟΣ ΛΕΩΝΙΔΑΣ | C179: 1999 | D179: Α.Ο.Α.ΦΙΛΟΘΕΗΣ | E179: -20
A180: 27116 | B180: ΒΙΤΑΛΗΣ ΠΕΤΡΟΣ | C180: 1998 | D180: Α.Π.Ο.ΣΑΝΝΥ ΣΠΟΡΤΣ ΚΛΑΜΠ | E180: -20
A181: 24018 | B181: ΓΑΚΙΔΗΣ ΓΕΩΡΓΙΟΣ | C181: 1998 | D181: Ο.Π.ΘΕΣΣΑΛΟΝΙΚΗΣ ΜΑΚΕΔΟΝΙΑ 92 | E181: -20
A182: 32470 | B182: ΓΕΡΟΓΙΑΝΝΗΣ ΑΛΕΞΑΝΔΡΟΣ | C182: 1999 | D182: Α.Ο.Α.ΧΑΪΔΑΡΙΟΥ | E182: -20
A183: 31716 | B183: ΓΚΟΓΚΙΔΗΣ ΑΛΕΞΑΝΔΡΟΣ | C183: 1999 | D183: Μ.Α.Σ.ΑΕΤΟΣ ΘΕΣΣΑΛΟΝΙΚΗΣ | E183: -20
A184: 32342 | B184: ΚΑΛΙΕΝΤΖΙΔΗΣ ΧΡΗΣΤΟΣ | C184: 1998 | D184: Ο.Π.ΘΕΣΣΑΛΟΝΙΚΗΣ ΜΑΚΕΔΟΝΙΑ 92 | E184: -20
A185: 27004 | B185: ΚΑΡΑΓΙΑΝΝΗΣ ΔΗΜΗΤΡΙΟΣ | C185: 1998 | D185: Ο.Α.ΙΩΛΚΟΣ ΒΟΛΟΥ | E185: -20
A186: 29798 | B186: ΚΕΔΙΚΟΓΛΟΥ ΠΑΝΑΓΙΩΤΗΣ | C186: 1999 | D186: Ο.Α.ΩΡΑΙΟΚΑΣΤΡΟΥ Ο ΑΝΤΑΙΟΣ | E186: -20
A187: 24171 | B187: ΚΕΛΑΪΔΗΣ ΚΑΡΛΟΣ | C187: 1998 | D187: Ο.Α.ΓΛΥΦΑΔΑΣ | E187: -20
A188: 31362 | B188: ΚΟΥΤΣΜΑΝΗΣ ΙΩΑΝΝΗΣ | C188: 1999 | D188: Ν.Ο.ΘΕΣΣΑΛΟΝΙΚΗΣ | E188: -20
A189: 26709 | B189: ΛΙΟΔΑΚΗΣ ΑΡΙΣΤΕΙΔΗΣ | C189: 1999 | D189: Ο.Α.ΣΟΥΔΑΣ | E189: -20
A190: 29394 | B190: ΜΕΓΑΛΟΟΙΚΟΝΟΜΟΥ ΝΙΚΟΛΑΟΣ | C190: 1998 | D190: Γ.Σ.ΚΗΦΙΣΙΑΣ | E190: -20
A191: 27475 | B191: ΜΠΟΥΝΤΟΥΚΟΣ ΓΕΩΡΓΙΟΣ | C191: 1998 | D191: Ο.Α.ΒΟΛΟΥ | E191: -20
A192: 30139 | B192: ΜΥΛΩΝΑΣ ΙΩΑΝΝΗΣ | C192: 1998 | D192: Ε.Σ.Ο.ΕΠΙΚΟΥΡΟΣ ΠΟΛΙΧΝΗΣ | E192: -20
A193: 25586 | B193: ΝΙΚΟΛΟΠΟΥΛΟΣ ΦΙΛΙΠΠΟΣ-ΠΕΡΙΚΛΗΣ | C193: 1998 | D193: Ο.Α.ΑΘΗΝΩΝ | E193: -20
A194: 28787 | B194: ΠΑΠΑΖΟΓΛΟΥ ΙΩΑΝΝΗΣ | C194: 1999 | D194: Ο.Α.ΓΛΥΦΑΔΑΣ | E194: -20
A195: 31152 | B195: ΠΑΣΠΑΛΑΡΑΚΗΣ ΙΩΑΝΝΗΣ | C195: 1999 | D195: Ο.Α.ΣΗΤΕΙΑΣ | E195: -20
A196: 31995 | B196: ΣΚΙΑΝΗΣ ΙΩΑΝΝΗΣ | C196: 1999 | D196: Ο.Α.ΑΘΛΗΤΙΚΗ ΠΑΙΔΕΙΑ | E196: -20
A197: 30608 | B197: ΤΣΙΑΔΗΜΟΣ ΡΑΦΑΗΛ | C197: 1999 | D197: Γ.Σ.ΕΛΕΥΘΕΡΙΟΥ ΚΟΡΔ.ΑΡΓΟΝΑΥΤΕΣ | E197: -20
A198: 32863 | B198: ΤΣΙΒΓΙΟΥΡΑΣ ΣΩΤΗΡΗΣ | C198: 1999 | D198: Ο.Α.ΒΟΛΟΥ | E198: -20
A199: 27772 | B199: ΦΤΟΥΛΗΣ ΜΑΝΩΛΗΣ | C199: 1999 | D199: Α.Σ.ΟΛΥΜΠΙΑΚΟΥ ΧΩΡΙΟΥ | E199: -20
A200: 30788 | B200: ΧΑΝΤΖΟΠΟΥΛΟΣ ΑΡΙΣΤΟΤΕΛΗΣ | C200: 1999 | D200: ΠΕΥΚΗ-Γ.ΚΑΛΟΒΕΛΩΝΗΣ | E200: -20
... 3 more rows
